{"text_format":"1","workbook":"xlsx","n_sheets":5,"sheets":["Welcome","Application_Page","appcopy","Texts","Data fields"],"not_rendered":{"charts":0,"images":11,"macros":1,"external_links":0,"defined_names":10,"comments":1,"pivot_tables":0},"unopened":[],"bounds":{"document_bytes":16777216,"sheet_cells":100000,"rows_first":2000,"rows_last":500,"rows_between":2000,"halvings":0,"cell_chars":16384,"cell_head_chars":4096},"cells_cut":0,"cells_raw":0,"read":"whole","date_system":"1904"}

{"sheet":"Welcome","index":0,"n_rows":20,"n_cols":14,"rows_kept":20,"cut":false,"hidden":false,"merged":[[1,6,2,11],[10,1,10,4],[1,0,29,0],[4,2,4,15],[0,0,0,15],[14,1,14,3],[14,4,14,9],[8,5,8,15],[6,5,6,15],[6,1,6,4],[8,1,8,4],[9,1,9,4]]}
[]
[null,null,null,null,null,null,{"$f":"INDEX(Texts!$A$1:$C$61,2,Welcome!N19)","v":"Welcome"}]
[]
[]
[null,null,{"$f":"INDEX(Texts!$A$2:$C$61,2,Welcome!N19)","v":"This template will aid in the submission of personal data to the Tokyo 2020 accreditation system. It will check for errors in the data that you are about to submit. Once all your data is correct, you will be able to generate an import file to load in the accreditation system.\n"}]
[]
[null,{"$f":"INDEX(Texts!$A$2:$C$61,3,Welcome!N19)","v":"Organisation:"}]
[]
[null,{"$f":"INDEX(Texts!$A$2:$C$61,4,Welcome!N19)","v":"Tokyo 2020 Accreditation Contact:"}]
[null,{"$f":"INDEX(Texts!$A$2:$C$61,6,Welcome!N19)","v":"Select your language:"}]
[null,{"$f":"INDEX(Texts!$A$2:$C$62,7,Welcome!N19)","v":"Select your date format:"}]
[]
[]
[]
[]
[]
[]
[null,null,null,null,null,null,null,null,null,null,null,null,{"$f":"INDEX(Texts!$A$5:$C$8,2,Welcome!N19)","v":"Template version: "}]
[null,null,null,null,null,null,null,null,null,null,null,null,1,1]
[null,null,null,null,null,null,null,null,null,null,null,null,null,16]

{"sheet":"Application_Page","index":1,"n_rows":207,"n_cols":39,"rows_kept":207,"cut":false,"hidden":false,"merged":[]}
[null,"Organisation","Function","Discipline(s)","All competing disciplines","Family name","Given name","Middle/other given name(s)","Preferred family name","Preferred given name","IF family name","IF given name","Family name (Japanese)","Given name (Japanese)","Gender","Date of birth","Nationality","Document type","Document number","Country of issue","Date of expiry","Daily wheelchair user","Mobile phone","Home phone","Email address","Photograph","Height","Organisation reference","Athlete 365 Acceptance","Athlete 365 Email Address","SNS type 1","SNS profile 1","SNS type 2","SNS profile 2","SNS type 3","SNS profile 3","SNS type 4","SNS profile 4"]
[{"$f":"INDEX(Texts!$A$2:$C$15,10,Welcome!N19)","v":"FIELD"},{"$f":"VLOOKUP(B1,'Data fields'!$A$2:$D$42,Welcome!$N$19+1,FALSE)","v":"Organisation"},{"$f":"VLOOKUP(C1,'Data fields'!$A$2:$D$42,Welcome!$N$19+1,FALSE)","v":"Function"},{"$f":"VLOOKUP(D1,'Data fields'!$A$2:$D$42,Welcome!$N$19+1,FALSE)","v":"Discipline(s)"},{"$f":"VLOOKUP(E1,'Data fields'!$A$2:$D$42,Welcome!$N$19+1,FALSE)","v":"All competing disciplines"},{"$f":"VLOOKUP(F1,'Data fields'!$A$2:$D$42,Welcome!$N$19+1,FALSE)","v":"Family name"},{"$f":"VLOOKUP(G1,'Data fields'!$A$2:$D$42,Welcome!$N$19+1,FALSE)","v":"Given name"},{"$f":"VLOOKUP(H1,'Data fields'!$A$2:$D$42,Welcome!$N$19+1,FALSE)","v":"Middle/other given name(s)"},{"$f":"VLOOKUP(I1,'Data fields'!$A$2:$D$42,Welcome!$N$19+1,FALSE)","v":"Preferred family name"},{"$f":"VLOOKUP(J1,'Data fields'!$A$2:$D$42,Welcome!$N$19+1,FALSE)","v":"Preferred given name"},{"$f":"VLOOKUP(K1,'Data fields'!$A$2:$D$42,Welcome!$N$19+1,FALSE)","v":"IF family name"},{"$f":"VLOOKUP(L1,'Data fields'!$A$2:$D$42,Welcome!$N$19+1,FALSE)","v":"IF given name"},{"$f":"VLOOKUP(M1,'Data fields'!$A$2:$D$42,Welcome!$N$19+1,FALSE)","v":"Family name (in Japanese)"},{"$f":"VLOOKUP(N1,'Data fields'!$A$2:$D$42,Welcome!$N$19+1,FALSE)","v":"Given name (in Japanese)"},{"$f":"VLOOKUP(O1,'Data fields'!$A$2:$D$42,Welcome!$N$19+1,FALSE)","v":"Gender"},{"$f":"VLOOKUP(P1,'Data fields'!$A$2:$D$42,Welcome!$N$19+1,FALSE)","v":"Date of birth"},{"$f":"VLOOKUP(Q1,'Data fields'!$A$2:$D$42,Welcome!$N$19+1,FALSE)","v":"Nationality"},{"$f":"VLOOKUP(R1,'Data fields'!$A$2:$D$42,Welcome!$N$19+1,FALSE)","v":"Document type"},{"$f":"VLOOKUP(S1,'Data fields'!$A$2:$D$42,Welcome!$N$19+1,FALSE)","v":"Document number"},{"$f":"VLOOKUP(T1,'Data fields'!$A$2:$D$42,Welcome!$N$19+1,FALSE)","v":"Country of issue"},{"$f":"VLOOKUP(U1,'Data fields'!$A$2:$D$42,Welcome!$N$19+1,FALSE)","v":"Date of expiry"},{"$f":"VLOOKUP(V1,'Data fields'!$A$2:$D$42,Welcome!$N$19+1,FALSE)","v":"Daily wheelchair user"},{"$f":"VLOOKUP(W1,'Data fields'!$A$2:$D$42,Welcome!$N$19+1,FALSE)","v":"Mobile phone"},{"$f":"VLOOKUP(X1,'Data fields'!$A$2:$D$42,Welcome!$N$19+1,FALSE)","v":"Home phone"},{"$f":"VLOOKUP(Y1,'Data fields'!$A$2:$D$42,Welcome!$N$19+1,FALSE)","v":"Email address"},{"$f":"VLOOKUP(Z1,'Data fields'!$A$2:$D$42,Welcome!$N$19+1,FALSE)","v":"Photograph"},{"$f":"VLOOKUP(AA1,'Data fields'!$A$2:$D$42,Welcome!$N$19+1,FALSE)","v":"Height"},{"$f":"VLOOKUP(AB1,'Data fields'!$A$2:$D$42,Welcome!$N$19+1,FALSE)","v":"Organisation reference"},{"$f":"VLOOKUP(AC1,'Data fields'!$A$2:$D$42,Welcome!$N$19+1,FALSE)","v":"Athlete 365 Acceptance"},{"$f":"VLOOKUP(AD1,'Data fields'!$A$2:$D$42,Welcome!$N$19+1,FALSE)","v":"Athlete 365 Email Address"},{"$f":"VLOOKUP(AE1,'Data fields'!$A$2:$D$42,Welcome!$N$19+1,FALSE)","v":"SNS type 1"},{"$f":"VLOOKUP(AF1,'Data fields'!$A$2:$D$42,Welcome!$N$19+1,FALSE)","v":"SNS profile 1"},{"$f":"VLOOKUP(AG1,'Data fields'!$A$2:$D$42,Welcome!$N$19+1,FALSE)","v":"SNS type 2"},{"$f":"VLOOKUP(AH1,'Data fields'!$A$2:$D$42,Welcome!$N$19+1,FALSE)","v":"SNS profile 2"},{"$f":"VLOOKUP(AI1,'Data fields'!$A$2:$D$42,Welcome!$N$19+1,FALSE)","v":"SNS type 3"},{"$f":"VLOOKUP(AJ1,'Data fields'!$A$2:$D$42,Welcome!$N$19+1,FALSE)","v":"SNS profile 3"},{"$f":"VLOOKUP(AK1,'Data fields'!$A$2:$D$42,Welcome!$N$19+1,FALSE)","v":"SNS type 4"},{"$f":"VLOOKUP(AL1,'Data fields'!$A$2:$D$42,Welcome!$N$19+1,FALSE)","v":"SNS profile 4"}]
[{"$f":"INDEX(Texts!$A$2:$C$15,11,Welcome!N19)","v":"DESCRIPTION"},{"$f":"VLOOKUP(B1,'Data fields'!$A$2:$G$62,Welcome!$N$19+4,FALSE)","v":"Enter the Organisation CODE"},{"$f":"VLOOKUP(C1,'Data fields'!$A$2:$G$62,Welcome!$N$19+4,FALSE)","v":"Enter the Function CODE"},{"$f":"VLOOKUP(D1,'Data fields'!$A$2:$G$62,Welcome!$N$19+4,FALSE)","v":"Enter the discipline(s) CODE(s). Separate with comma (,) for more than one code"},{"$f":"VLOOKUP(E1,'Data fields'!$A$2:$G$62,Welcome!$N$19+4,FALSE)","v":"Enter 'Y' for Yes or 'N' for No"},{"$f":"VLOOKUP(F1,'Data fields'!$A$2:$G$62,Welcome!$N$19+4,FALSE)","v":"Enter Family Name exactly as it appears on Identification Document"},{"$f":"VLOOKUP(G1,'Data fields'!$A$2:$G$62,Welcome!$N$19+4,FALSE)","v":"Enter first Given Name exactly as it appears on Identification Document"},{"$f":"VLOOKUP(H1,'Data fields'!$A$2:$G$62,Welcome!$N$19+4,FALSE)","v":"Enter Middle/other given name(s) exactly as it appears on Identification Document"},{"$f":"VLOOKUP(I1,'Data fields'!$A$2:$G$62,Welcome!$N$19+4,FALSE)","v":"Enter the Preferred family name"},{"$f":"VLOOKUP(J1,'Data fields'!$A$2:$G$62,Welcome!$N$19+4,FALSE)","v":"Enter the Preferred given name"},{"$f":"VLOOKUP(K1,'Data fields'!$A$2:$G$62,Welcome!$N$19+4,FALSE)","v":"Enter IF family name"},{"$f":"VLOOKUP(L1,'Data fields'!$A$2:$G$62,Welcome!$N$19+4,FALSE)","v":"Enter IF given name"},{"$f":"VLOOKUP(M1,'Data fields'!$A$2:$G$62,Welcome!$N$19+4,FALSE)","v":"Enter the local Family name (for Japanese nationals only)"},{"$f":"VLOOKUP(N1,'Data fields'!$A$2:$G$62,Welcome!$N$19+4,FALSE)","v":"Enter the local given name (for Japanese nationals only)"},{"$f":"VLOOKUP(O1,'Data fields'!$A$2:$G$62,Welcome!$N$19+4,FALSE)","v":"Enter the Gender CODE ('M' for Male, 'F' for Female or 'X' (only if in passport))"},{"$f":"VLOOKUP(P1,'Data fields'!$A$2:$G$62,Welcome!$N$19+4,FALSE)","v":"Enter the Date of Birth"},{"$f":"VLOOKUP(Q1,'Data fields'!$A$2:$G$62,Welcome!$N$19+4,FALSE)","v":"Enter the Country CODE"},{"$f":"VLOOKUP(R1,'Data fields'!$A$2:$G$62,Welcome!$N$19+4,FALSE)","v":"Enter the Document Type CODE"},{"$f":"VLOOKUP(S1,'Data fields'!$A$2:$G$62,Welcome!$N$19+4,FALSE)","v":"Enter the Document number"},{"$f":"VLOOKUP(T1,'Data fields'!$A$2:$G$62,Welcome!$N$19+4,FALSE)","v":"Enter the \nCountry CODE"},{"$f":"VLOOKUP(U1,'Data fields'!$A$2:$G$62,Welcome!$N$19+4,FALSE)","v":"Enter the Document expiry date"},{"$f":"VLOOKUP(V1,'Data fields'!$A$2:$G$62,Welcome!$N$19+4,FALSE)","v":"Type 'YE' for 'Yes electric wheelchair' , 'YM' for 'Yes manual wheelchair', 'N' for \"No"},{"$f":"VLOOKUP(W1,'Data fields'!$A$2:$G$62,Welcome!$N$19+4,FALSE)","v":"Enter home Phone number"},{"$f":"VLOOKUP(X1,'Data fields'!$A$2:$G$62,Welcome!$N$19+4,FALSE)","v":"Enter mobile Phone number"},{"$f":"VLOOKUP(Y1,'Data fields'!$A$2:$G$62,Welcome!$N$19+4,FALSE)","v":"Enter the Email address of the applicant"},{"$f":"VLOOKUP(Z1,'Data fields'!$A$2:$G$62,Welcome!$N$19+4,FALSE)","v":"Enter the exact file name including the file extension"},{"$f":"VLOOKUP(AA1,'Data fields'!$A$2:$G$62,Welcome!$N$19+4,FALSE)","v":"Enter the Height in centimetres (mandatory for some disciplines)"},{"$f":"VLOOKUP(AB1,'Data fields'!$A$2:$G$62,Welcome!$N$19+4,FALSE)","v":"Enter the Organisation reference"},{"$f":"VLOOKUP(AC1,'Data fields'!$A$2:$G$62,Welcome!$N$19+4,FALSE)","v":"Enter 'Y' for Yes or 'N' for No"},{"$f":"VLOOKUP(AD1,'Data fields'!$A$2:$G$62,Welcome!$N$19+4,FALSE)","v":"Enter Athlete 365 Email Address"},{"$f":"VLOOKUP(AE1,'Data fields'!$A$2:$G$62,Welcome!$N$19+4,FALSE)","v":"Enter The Social Media Type 1 CODE"},{"$f":"VLOOKUP(AF1,'Data fields'!$A$2:$G$62,Welcome!$N$19+4,FALSE)","v":"Enter Your Social Media profile 1"},{"$f":"VLOOKUP(AG1,'Data fields'!$A$2:$G$62,Welcome!$N$19+4,FALSE)","v":"Enter The Social Media Type 2 CODE"},{"$f":"VLOOKUP(AH1,'Data fields'!$A$2:$G$62,Welcome!$N$19+4,FALSE)","v":"Enter Your Social Media profile 2"},{"$f":"VLOOKUP(AI1,'Data fields'!$A$2:$G$62,Welcome!$N$19+4,FALSE)","v":"Enter The Social Media Type 3 CODE"},{"$f":"VLOOKUP(AJ1,'Data fields'!$A$2:$G$62,Welcome!$N$19+4,FALSE)","v":"Enter Your Social Media profile 3"},{"$f":"VLOOKUP(AK1,'Data fields'!$A$2:$G$62,Welcome!$N$19+4,FALSE)","v":"Enter The Social Media Type 4 CODE"},{"$f":"VLOOKUP(AL1,'Data fields'!$A$2:$G$62,Welcome!$N$19+4,FALSE)","v":"Enter Your Social Media profile 4"}]
[{"$f":"INDEX(Texts!$A$2:$C$15,12,Welcome!N19)","v":"FORMAT"},{"$f":"VLOOKUP(B1,'Data fields'!$A$2:$J$62,10,FALSE)","v":"CODE"},{"$f":"VLOOKUP(C7,'Data fields'!$A$2:$J$62,10,FALSE)","v":"CODE"},{"$f":"VLOOKUP(D7,'Data fields'!$A$2:$J$62,10,FALSE)","v":"CODE"},{"$f":"VLOOKUP(E7,'Data fields'!$A$2:$J$62,10,FALSE)","v":"CODE"},{"$f":"VLOOKUP(F7,'Data fields'!$A$2:$J$62,10,FALSE)","v":"TEXT"},{"$f":"VLOOKUP(G7,'Data fields'!$A$2:$J$62,10,FALSE)","v":"TEXT"},{"$f":"VLOOKUP(H7,'Data fields'!$A$2:$J$62,10,FALSE)","v":"TEXT"},{"$f":"VLOOKUP(I7,'Data fields'!$A$2:$J$62,10,FALSE)","v":"TEXT"},{"$f":"VLOOKUP(J7,'Data fields'!$A$2:$J$62,10,FALSE)","v":"TEXT"},{"$f":"VLOOKUP(K7,'Data fields'!$A$2:$J$62,10,FALSE)","v":"TEXT"},{"$f":"VLOOKUP(L7,'Data fields'!$A$2:$J$62,10,FALSE)","v":"TEXT"},{"$f":"VLOOKUP(M7,'Data fields'!$A$2:$J$62,10,FALSE)","v":"TEXT"},{"$f":"VLOOKUP(N7,'Data fields'!$A$2:$J$62,10,FALSE)","v":"TEXT"},{"$f":"VLOOKUP(O7,'Data fields'!$A$2:$J$62,10,FALSE)","v":"CODE"},{"$f":"VLOOKUP(P7,'Data fields'!$A$2:$J$62,10,FALSE)","v":"DD/MM/YYYY"},{"$f":"VLOOKUP(Q7,'Data fields'!$A$2:$J$62,10,FALSE)","v":"CODE"},{"$f":"VLOOKUP(R7,'Data fields'!$A$2:$J$62,10,FALSE)","v":"CODE"},{"$f":"VLOOKUP(S7,'Data fields'!$A$2:$J$62,10,FALSE)","v":"TEXT/NUMBER"},{"$f":"VLOOKUP(T7,'Data fields'!$A$2:$J$62,10,FALSE)","v":"CODE"},{"$f":"VLOOKUP(U7,'Data fields'!$A$2:$J$62,10,FALSE)","v":"DD/MM/YYYY"},{"$f":"VLOOKUP(V7,'Data fields'!$A$2:$J$62,10,FALSE)","v":"CODE"},{"$f":"VLOOKUP(W7,'Data fields'!$A$2:$J$62,10,FALSE)","v":"TEL NUMBER"},{"$f":"VLOOKUP(X7,'Data fields'!$A$2:$J$62,10,FALSE)","v":"TEL NUMBER"},{"$f":"VLOOKUP(Y7,'Data fields'!$A$2:$J$62,10,FALSE)","v":"TEXT"},{"$f":"VLOOKUP(Z7,'Data fields'!$A$2:$J$62,10,FALSE)","v":"TEXT"},{"$f":"VLOOKUP(AA7,'Data fields'!$A$2:$J$62,10,FALSE)","v":"NUMBER"},{"$f":"VLOOKUP(AB7,'Data fields'!$A$2:$J$62,10,FALSE)","v":"TEXT"},{"$f":"VLOOKUP(AC7,'Data fields'!$A$2:$J$62,10,FALSE)","v":"TEXT"},{"$f":"VLOOKUP(AD7,'Data fields'!$A$2:$J$62,10,FALSE)","v":"TEXT"},{"$f":"VLOOKUP(AE7,'Data fields'!$A$2:$J$62,10,FALSE)","v":"CODE"},{"$f":"VLOOKUP(AF7,'Data fields'!$A$2:$J$62,10,FALSE)","v":"TEXT"},{"$f":"VLOOKUP(AG7,'Data fields'!$A$2:$J$62,10,FALSE)","v":"CODE"},{"$f":"VLOOKUP(AH7,'Data fields'!$A$2:$J$62,10,FALSE)","v":"TEXT"},{"$f":"VLOOKUP(AI7,'Data fields'!$A$2:$J$62,10,FALSE)","v":"CODE"},{"$f":"VLOOKUP(AJ7,'Data fields'!$A$2:$J$62,10,FALSE)","v":"TEXT"},{"$f":"VLOOKUP(AK7,'Data fields'!$A$2:$J$62,10,FALSE)","v":"CODE"},{"$f":"VLOOKUP(AL7,'Data fields'!$A$2:$J$62,10,FALSE)","v":"TEXT"}]
[{"$f":"INDEX(Texts!$A$2:$C$15,13,Welcome!N19)","v":"MAX LENGTH"},{"$f":"VLOOKUP(B1,'Data fields'!$A$2:$J$62,8,FALSE)","v":12},{"$f":"VLOOKUP(C1,'Data fields'!$A$2:$J$62,8,FALSE)","v":12},{"$f":"VLOOKUP(D1,'Data fields'!$A$2:$J$62,8,FALSE)","v":150},{"$f":"VLOOKUP(E1,'Data fields'!$A$2:$J$62,8,FALSE)","v":1},{"$f":"VLOOKUP(F1,'Data fields'!$A$2:$J$62,8,FALSE)","v":25},{"$f":"VLOOKUP(G1,'Data fields'!$A$2:$J$62,8,FALSE)","v":25},{"$f":"VLOOKUP(H1,'Data fields'!$A$2:$J$62,8,FALSE)","v":25},{"$f":"VLOOKUP(I1,'Data fields'!$A$2:$J$62,8,FALSE)","v":25},{"$f":"VLOOKUP(J1,'Data fields'!$A$2:$J$62,8,FALSE)","v":25},{"$f":"VLOOKUP(K1,'Data fields'!$A$2:$J$62,8,FALSE)","v":25},{"$f":"VLOOKUP(L1,'Data fields'!$A$2:$J$62,8,FALSE)","v":25},{"$f":"VLOOKUP(M1,'Data fields'!$A$2:$J$62,8,FALSE)","v":25},{"$f":"VLOOKUP(N1,'Data fields'!$A$2:$J$62,8,FALSE)","v":25},{"$f":"VLOOKUP(O1,'Data fields'!$A$2:$J$62,8,FALSE)","v":1},{"$f":"VLOOKUP(P1,'Data fields'!$A$2:$J$62,8,FALSE)","v":10},{"$f":"VLOOKUP(Q1,'Data fields'!$A$2:$J$62,8,FALSE)","v":3},{"$f":"VLOOKUP(R1,'Data fields'!$A$2:$J$62,8,FALSE)","v":3},{"$f":"VLOOKUP(S1,'Data fields'!$A$2:$J$62,8,FALSE)","v":20},{"$f":"VLOOKUP(T1,'Data fields'!$A$2:$J$62,8,FALSE)","v":3},{"$f":"VLOOKUP(U1,'Data fields'!$A$2:$J$62,8,FALSE)","v":10},{"$f":"VLOOKUP(V1,'Data fields'!$A$2:$J$62,8,FALSE)","v":2},{"$f":"VLOOKUP(W1,'Data fields'!$A$2:$J$62,8,FALSE)","v":20},{"$f":"VLOOKUP(X1,'Data fields'!$A$2:$J$62,8,FALSE)","v":20},{"$f":"VLOOKUP(Y1,'Data fields'!$A$2:$J$62,8,FALSE)","v":80},{"$f":"VLOOKUP(Z1,'Data fields'!$A$2:$J$62,8,FALSE)","v":250},{"$f":"VLOOKUP(AA1,'Data fields'!$A$2:$J$62,8,FALSE)","v":3},{"$f":"VLOOKUP(AB1,'Data fields'!$A$2:$J$62,8,FALSE)","v":25},{"$f":"VLOOKUP(AC1,'Data fields'!$A$2:$J$62,8,FALSE)","v":1},{"$f":"VLOOKUP(AD1,'Data fields'!$A$2:$J$62,8,FALSE)","v":80},{"$f":"VLOOKUP(AE1,'Data fields'!$A$2:$J$62,8,FALSE)","v":3},{"$f":"VLOOKUP(AF1,'Data fields'!$A$2:$J$62,8,FALSE)","v":150},{"$f":"VLOOKUP(AG1,'Data fields'!$A$2:$J$62,8,FALSE)","v":3},{"$f":"VLOOKUP(AH1,'Data fields'!$A$2:$J$62,8,FALSE)","v":150},{"$f":"VLOOKUP(AI1,'Data fields'!$A$2:$J$62,8,FALSE)","v":3},{"$f":"VLOOKUP(AJ1,'Data fields'!$A$2:$J$62,8,FALSE)","v":150},{"$f":"VLOOKUP(AK1,'Data fields'!$A$2:$J$62,8,FALSE)","v":3},{"$f":"VLOOKUP(AL1,'Data fields'!$A$2:$J$62,8,FALSE)","v":150}]
[null,{"$f":"VLOOKUP(B7,'Data fields'!$A$2:$J$62,9,FALSE)","v":true},{"$f":"VLOOKUP(C7,'Data fields'!$A$2:$J$62,9,FALSE)","v":true},{"$f":"VLOOKUP(D7,'Data fields'!$A$2:$J$62,9,FALSE)","v":false},{"$f":"VLOOKUP(E7,'Data fields'!$A$2:$J$62,9,FALSE)","v":false},{"$f":"VLOOKUP(F7,'Data fields'!$A$2:$J$62,9,FALSE)","v":true},{"$f":"VLOOKUP(G7,'Data fields'!$A$2:$J$62,9,FALSE)","v":true},{"$f":"VLOOKUP(H7,'Data fields'!$A$2:$J$62,9,FALSE)","v":false},{"$f":"VLOOKUP(I7,'Data fields'!$A$2:$J$62,9,FALSE)","v":false},{"$f":"VLOOKUP(J7,'Data fields'!$A$2:$J$62,9,FALSE)","v":false},{"$f":"VLOOKUP(K7,'Data fields'!$A$2:$J$62,9,FALSE)","v":false},{"$f":"VLOOKUP(L7,'Data fields'!$A$2:$J$62,9,FALSE)","v":false},{"$f":"VLOOKUP(M7,'Data fields'!$A$2:$J$62,9,FALSE)","v":false},{"$f":"VLOOKUP(N7,'Data fields'!$A$2:$J$62,9,FALSE)","v":false},{"$f":"VLOOKUP(O7,'Data fields'!$A$2:$J$62,9,FALSE)","v":true},{"$f":"VLOOKUP(P7,'Data fields'!$A$2:$J$62,9,FALSE)","v":true},{"$f":"VLOOKUP(Q7,'Data fields'!$A$2:$J$62,9,FALSE)","v":true},{"$f":"VLOOKUP(R7,'Data fields'!$A$2:$J$62,9,FALSE)","v":true},{"$f":"VLOOKUP(S7,'Data fields'!$A$2:$J$62,9,FALSE)","v":true},{"$f":"VLOOKUP(T7,'Data fields'!$A$2:$J$62,9,FALSE)","v":false},{"$f":"VLOOKUP(U7,'Data fields'!$A$2:$J$62,9,FALSE)","v":false},{"$f":"VLOOKUP(V7,'Data fields'!$A$2:$J$62,9,FALSE)","v":true},{"$f":"VLOOKUP(W7,'Data fields'!$A$2:$J$62,9,FALSE)","v":false},{"$f":"VLOOKUP(X7,'Data fields'!$A$2:$J$62,9,FALSE)","v":false},{"$f":"VLOOKUP(Y7,'Data fields'!$A$2:$J$62,9,FALSE)","v":false},{"$f":"VLOOKUP(Z7,'Data fields'!$A$2:$J$62,9,FALSE)","v":false},{"$f":"VLOOKUP(AA7,'Data fields'!$A$2:$J$62,9,FALSE)","v":false},{"$f":"VLOOKUP(AB7,'Data fields'!$A$2:$J$62,9,FALSE)","v":false},{"$f":"VLOOKUP(AC7,'Data fields'!$A$2:$J$62,9,FALSE)","v":false},{"$f":"VLOOKUP(AD7,'Data fields'!$A$2:$J$62,9,FALSE)","v":false},{"$f":"VLOOKUP(AE7,'Data fields'!$A$2:$J$62,9,FALSE)","v":false},{"$f":"VLOOKUP(AF7,'Data fields'!$A$2:$J$62,9,FALSE)","v":false},{"$f":"VLOOKUP(AG7,'Data fields'!$A$2:$J$62,9,FALSE)","v":false},{"$f":"VLOOKUP(AH7,'Data fields'!$A$2:$J$62,9,FALSE)","v":false},{"$f":"VLOOKUP(AI7,'Data fields'!$A$2:$J$62,9,FALSE)","v":false},{"$f":"VLOOKUP(AJ7,'Data fields'!$A$2:$J$62,9,FALSE)","v":false},{"$f":"VLOOKUP(AK7,'Data fields'!$A$2:$J$62,9,FALSE)","v":false},{"$f":"VLOOKUP(AL7,'Data fields'!$A$2:$J$62,9,FALSE)","v":false}]
[null,"Organisation","Function","Discipline(s)","All competing disciplines","Family name","Given name","Middle/other given name(s)","Preferred family name","Preferred given name","IF family name","IF given name","Family name (Japanese)","Given name (Japanese)","Gender","Date of birth","Nationality","Document type","Document number","Country of issue","Date of expiry","Daily wheelchair user","Mobile phone","Home phone","Email address","Photograph","Height","Organisation reference","Athlete 365 Acceptance","Athlete 365 Email Address","SNS type 1","SNS profile 1","SNS type 2","SNS profile 2","SNS type 3","SNS profile 3","SNS type 4","SNS profile 4","x"]
["Pole pozostawione puste","Nie wypełniamy","Nie wypełniamy","Nie wypełniamy","Nie wypełniamy","Nazwisko, tak, jak w paszporcie. Bez polskich znaków. Wielkie litery.","Imię, tak, jak w paszporcie. Bez polskich znaków. Wielkie litery.","Jeśli istnieje - drugie imię, imiona tak, jak w paszporcie. Bez polskich znaków. Wielkie litery.","Nazwisko z polskimi znakami. Wielkie oraz małe litery.","Imię z polskimi znakami. Wielkie oraz małe litery.","Nazwisko używane w zawodach międzynarodowych. Dopuszczalne polskie znaki, wielkie oraz małe litery.","Imię używane w zawodach międzynarodowych. Dopuszczalne polskie znaki, wielkie oraz małe litery.","Nie wypełniamy","Nie wypełniamy","Płeć: M-Mężczyzna; F-Kobieta; X-dozwolone, ale tylko jeśli jest w paszporcie","Data urodzin według formatu: Dzień/Miesiąc/Rok (00/00/0000)","Narodowość według paszportu. POL dla Polski. Jeśli inna, proszę wpisać pełną nazwę.","Kod PAS - dla paszportu","Numer paszportu według wzoru: LITERY spacja NUMER (AB 123456)","Kraj wydania paszportu. POL dla Polski. Jeśli inny, proszę wpisać pełną nazwę kraju.","Data ważności dokumentu (paszportu) według formatu: Dzień/Miesiąc/Rok (00/00/0000). Paszport musi być ważny min. 6 miesięcy od przekroczenia granicy Japonii.","Osoby poruszające się na wózku: YE - wózek elektryczny, YM - wózek manualny, N - nie porusza się","Numer telefonu komórkowego","Numer telefonu domowego (opcjonalnie)","Adres e-mail","Nazwa pliku ze zdjęciem z właściwym roszerzeniem: .jpg; .jpeg; .png; .bmp","Wzrost podany w centymetrach bez skrótu \"cm\": 000 ","Numer licencji lub inny numer odpowiadający przynalezności do federacji (opcjonalnie)","Wyrażenie zgody dla przynalezności do programu Athletes 365: Y-wyrażam zgodę; N-niewyrażam zgody","Adres e-mail udostępniony dla portalu Athletes 365","Kod FCB - Facebook","Nazwa konta w mediach społecznościowych podanych po lewej stronie.","Koda INS - Instagram","Nazwa konta w mediach społecznościowych podanych po lewej stronie.","Koda TWI - Twitter","Nazwa konta w mediach społecznościowych podanych po lewej stronie.","Koda SNA - Snapchat","Nazwa konta w mediach społecznościowych podanych po lewej stronie.",{"$f":"IF(ISERROR(VLOOKUP(C8,#REF!,2,FALSE)),\"\",VLOOKUP(C8,#REF!,2,FALSE))","v":""}]
["PRZYKŁAD M",null,null,null,null,"CHECINSKI","JAN","ADAM","Chęciński","Jan","Chęciński","Jan",null,null,"M","04/11/2001","POL","PAS","EG 237865","POL","31/12/2021","N",48501502503,"48 22 5078899","janchecinski@gmail.com","jan_checinski.jpg",173,null,"Y","janchecinski@gmail.com","FCB","facebook.com/checinski123","INS","instagram.com/checin123",null,null,null,null,{"$f":"IF(ISERROR(VLOOKUP(C9,#REF!,2,FALSE)),\"\",VLOOKUP(C9,#REF!,2,FALSE))","v":""}]
["PRZYKŁAD K",null,null,null,null,"DROZDZ","ANNA","MARIA","Sakevich","Anna-Maria","Drożdż","Anna-Maria",null,null,"F","17/04/1972","Ukraina","PAS","EB 145789","Ukraina","02/03/2022","N",null,null,null,null,null,null,null,null,"FCB","facebok.com/annamaria72",null,null,"TWI","twitter.com/anna_maria",null,null,{"$f":"IF(ISERROR(VLOOKUP(C10,#REF!,2,FALSE)),\"\",VLOOKUP(C10,#REF!,2,FALSE))","v":""}]
[null,null,null,null,null,null,null,null,null,null,null,null,null,null,null,null,null,null,null,null,null,null,null,null,null,null,null,null,null,null,null,null,null,null,null,null,null,null,{"$f":"IF(ISERROR(VLOOKUP(C11,#REF!,2,FALSE)),\"\",VLOOKUP(C11,#REF!,2,FALSE))","v":""}]
[null,null,null,null,null,null,null,null,null,null,null,null,null,null,null,null,null,null,null,null,null,null,null,null,null,null,null,null,null,null,null,null,null,null,null,null,null,null,{"$f":"IF(ISERROR(VLOOKUP(C12,#REF!,2,FALSE)),\"\",VLOOKUP(C12,#REF!,2,FALSE))","v":""}]
[null,null,null,null,null,null,null,null,null,null,null,null,null,null,null,null,null,null,null,null,null,null,null,null,null,null,null,null,null,null,null,null,null,null,null,null,null,null,{"$f":"IF(ISERROR(VLOOKUP(C13,#REF!,2,FALSE)),\"\",VLOOKUP(C13,#REF!,2,FALSE))","v":""}]
[null,null,null,null,null,null,null,null,null,null,null,null,null,null,null,null,null,null,null,null,null,null,null,null,null,null,null,null,null,null,null,null,null,null,null,null,null,null,{"$f":"IF(ISERROR(VLOOKUP(C14,#REF!,2,FALSE)),\"\",VLOOKUP(C14,#REF!,2,FALSE))","v":""}]
[null,null,null,null,null,null,null,null,null,null,null,null,null,null,null,null,null,null,null,null,null,null,null,null,null,null,null,null,null,null,null,null,null,null,null,null,null,null,{"$f":"IF(ISERROR(VLOOKUP(C15,#REF!,2,FALSE)),\"\",VLOOKUP(C15,#REF!,2,FALSE))","v":""}]
[null,null,null,null,null,null,null,null,null,null,null,null,null,null,null,null,null,null,null,null,null,null,null,null,null,null,null,null,null,null,null,null,null,null,null,null,null,null,{"$f":"IF(ISERROR(VLOOKUP(C16,#REF!,2,FALSE)),\"\",VLOOKUP(C16,#REF!,2,FALSE))","v":""}]
[null,null,null,null,null,null,null,null,null,null,null,null,null,null,null,null,null,null,null,null,null,null,null,null,null,null,null,null,null,null,null,null,null,null,null,null,null,null,{"$f":"IF(ISERROR(VLOOKUP(C17,#REF!,2,FALSE)),\"\",VLOOKUP(C17,#REF!,2,FALSE))","v":""}]
[null,null,null,null,null,null,null,null,null,null,null,null,null,null,null,null,null,null,null,null,null,null,null,null,null,null,null,null,null,null,null,null,null,null,null,null,null,null,{"$f":"IF(ISERROR(VLOOKUP(C18,#REF!,2,FALSE)),\"\",VLOOKUP(C18,#REF!,2,FALSE))","v":""}]
[null,null,null,null,null,null,null,null,null,null,null,null,null,null,null,null,null,null,null,null,null,null,null,null,null,null,null,null,null,null,null,null,null,null,null,null,null,null,{"$f":"IF(ISERROR(VLOOKUP(C19,#REF!,2,FALSE)),\"\",VLOOKUP(C19,#REF!,2,FALSE))","v":""}]
[null,null,null,null,null,null,null,null,null,null,null,null,null,null,null,null,null,null,null,null,null,null,null,null,null,null,null,null,null,null,null,null,null,null,null,null,null,null,{"$f":"IF(ISERROR(VLOOKUP(C20,#REF!,2,FALSE)),\"\",VLOOKUP(C20,#REF!,2,FALSE))","v":""}]
[null,null,null,null,null,null,null,null,null,null,null,null,null,null,null,null,null,null,null,null,null,null,null,null,null,null,null,null,null,null,null,null,null,null,null,null,null,null,{"$f":"IF(ISERROR(VLOOKUP(C21,#REF!,2,FALSE)),\"\",VLOOKUP(C21,#REF!,2,FALSE))","v":""}]
[null,null,null,null,null,null,null,null,null,null,null,null,null,null,null,null,null,null,null,null,null,null,null,null,null,null,null,null,null,null,null,null,null,null,null,null,null,null,{"$f":"IF(ISERROR(VLOOKUP(C22,#REF!,2,FALSE)),\"\",VLOOKUP(C22,#REF!,2,FALSE))","v":""}]
[null,null,null,null,null,null,null,null,null,null,null,null,null,null,null,null,null,null,null,null,null,null,null,null,null,null,null,null,null,null,null,null,null,null,null,null,null,null,{"$f":"IF(ISERROR(VLOOKUP(C23,#REF!,2,FALSE)),\"\",VLOOKUP(C23,#REF!,2,FALSE))","v":""}]
[null,null,null,null,null,null,null,null,null,null,null,null,null,null,null,null,null,null,null,null,null,null,null,null,null,null,null,null,null,null,null,null,null,null,null,null,null,null,{"$f":"IF(ISERROR(VLOOKUP(C24,#REF!,2,FALSE)),\"\",VLOOKUP(C24,#REF!,2,FALSE))","v":""}]
[null,null,null,null,null,null,null,null,null,null,null,null,null,null,null,null,null,null,null,null,null,null,null,null,null,null,null,null,null,null,null,null,null,null,null,null,null,null,{"$f":"IF(ISERROR(VLOOKUP(C25,#REF!,2,FALSE)),\"\",VLOOKUP(C25,#REF!,2,FALSE))","v":""}]
[null,null,null,null,null,null,null,null,null,null,null,null,null,null,null,null,null,null,null,null,null,null,null,null,null,null,null,null,null,null,null,null,null,null,null,null,null,null,{"$f":"IF(ISERROR(VLOOKUP(C26,#REF!,2,FALSE)),\"\",VLOOKUP(C26,#REF!,2,FALSE))","v":""}]
[null,null,null,null,null,null,null,null,null,null,null,null,null,null,null,null,null,null,null,null,null,null,null,null,null,null,null,null,null,null,null,null,null,null,null,null,null,null,{"$f":"IF(ISERROR(VLOOKUP(C27,#REF!,2,FALSE)),\"\",VLOOKUP(C27,#REF!,2,FALSE))","v":""}]
[null,null,null,null,null,null,null,null,null,null,null,null,null,null,null,null,null,null,null,null,null,null,null,null,null,null,null,null,null,null,null,null,null,null,null,null,null,null,{"$f":"IF(ISERROR(VLOOKUP(C28,#REF!,2,FALSE)),\"\",VLOOKUP(C28,#REF!,2,FALSE))","v":""}]
[null,null,null,null,null,null,null,null,null,null,null,null,null,null,null,null,null,null,null,null,null,null,null,null,null,null,null,null,null,null,null,null,null,null,null,null,null,null,{"$f":"IF(ISERROR(VLOOKUP(C29,#REF!,2,FALSE)),\"\",VLOOKUP(C29,#REF!,2,FALSE))","v":""}]
[null,null,null,null,null,null,null,null,null,null,null,null,null,null,null,null,null,null,null,null,null,null,null,null,null,null,null,null,null,null,null,null,null,null,null,null,null,null,{"$f":"IF(ISERROR(VLOOKUP(C30,#REF!,2,FALSE)),\"\",VLOOKUP(C30,#REF!,2,FALSE))","v":""}]
[null,null,null,null,null,null,null,null,null,null,null,null,null,null,null,null,null,null,null,null,null,null,null,null,null,null,null,null,null,null,null,null,null,null,null,null,null,null,{"$f":"IF(ISERROR(VLOOKUP(C31,#REF!,2,FALSE)),\"\",VLOOKUP(C31,#REF!,2,FALSE))","v":""}]
[null,null,null,null,null,null,null,null,null,null,null,null,null,null,null,null,null,null,null,null,null,null,null,null,null,null,null,null,null,null,null,null,null,null,null,null,null,null,{"$f":"IF(ISERROR(VLOOKUP(C32,#REF!,2,FALSE)),\"\",VLOOKUP(C32,#REF!,2,FALSE))","v":""}]
[null,null,null,null,null,null,null,null,null,null,null,null,null,null,null,null,null,null,null,null,null,null,null,null,null,null,null,null,null,null,null,null,null,null,null,null,null,null,{"$f":"IF(ISERROR(VLOOKUP(C33,#REF!,2,FALSE)),\"\",VLOOKUP(C33,#REF!,2,FALSE))","v":""}]
[null,null,null,null,null,null,null,null,null,null,null,null,null,null,null,null,null,null,null,null,null,null,null,null,null,null,null,null,null,null,null,null,null,null,null,null,null,null,{"$f":"IF(ISERROR(VLOOKUP(C34,#REF!,2,FALSE)),\"\",VLOOKUP(C34,#REF!,2,FALSE))","v":""}]
[null,null,null,null,null,null,null,null,null,null,null,null,null,null,null,null,null,null,null,null,null,null,null,null,null,null,null,null,null,null,null,null,null,null,null,null,null,null,{"$f":"IF(ISERROR(VLOOKUP(C35,#REF!,2,FALSE)),\"\",VLOOKUP(C35,#REF!,2,FALSE))","v":""}]
[null,null,null,null,null,null,null,null,null,null,null,null,null,null,null,null,null,null,null,null,null,null,null,null,null,null,null,null,null,null,null,null,null,null,null,null,null,null,{"$f":"IF(ISERROR(VLOOKUP(C36,#REF!,2,FALSE)),\"\",VLOOKUP(C36,#REF!,2,FALSE))","v":""}]
[null,null,null,null,null,null,null,null,null,null,null,null,null,null,null,null,null,null,null,null,null,null,null,null,null,null,null,null,null,null,null,null,null,null,null,null,null,null,{"$f":"IF(ISERROR(VLOOKUP(C37,#REF!,2,FALSE)),\"\",VLOOKUP(C37,#REF!,2,FALSE))","v":""}]
[null,null,null,null,null,null,null,null,null,null,null,null,null,null,null,null,null,null,null,null,null,null,null,null,null,null,null,null,null,null,null,null,null,null,null,null,null,null,{"$f":"IF(ISERROR(VLOOKUP(C38,#REF!,2,FALSE)),\"\",VLOOKUP(C38,#REF!,2,FALSE))","v":""}]
[null,null,null,null,null,null,null,null,null,null,null,null,null,null,null,null,null,null,null,null,null,null,null,null,null,null,null,null,null,null,null,null,null,null,null,null,null,null,{"$f":"IF(ISERROR(VLOOKUP(C39,#REF!,2,FALSE)),\"\",VLOOKUP(C39,#REF!,2,FALSE))","v":""}]
[null,null,null,null,null,null,null,null,null,null,null,null,null,null,null,null,null,null,null,null,null,null,null,null,null,null,null,null,null,null,null,null,null,null,null,null,null,null,{"$f":"IF(ISERROR(VLOOKUP(C40,#REF!,2,FALSE)),\"\",VLOOKUP(C40,#REF!,2,FALSE))","v":""}]
[null,null,null,null,null,null,null,null,null,null,null,null,null,null,null,null,null,null,null,null,null,null,null,null,null,null,null,null,null,null,null,null,null,null,null,null,null,null,{"$f":"IF(ISERROR(VLOOKUP(C41,#REF!,2,FALSE)),\"\",VLOOKUP(C41,#REF!,2,FALSE))","v":""}]
[null,null,null,null,null,null,null,null,null,null,null,null,null,null,null,null,null,null,null,null,null,null,null,null,null,null,null,null,null,null,null,null,null,null,null,null,null,null,{"$f":"IF(ISERROR(VLOOKUP(C42,#REF!,2,FALSE)),\"\",VLOOKUP(C42,#REF!,2,FALSE))","v":""}]
[null,null,null,null,null,null,null,null,null,null,null,null,null,null,null,null,null,null,null,null,null,null,null,null,null,null,null,null,null,null,null,null,null,null,null,null,null,null,{"$f":"IF(ISERROR(VLOOKUP(C43,#REF!,2,FALSE)),\"\",VLOOKUP(C43,#REF!,2,FALSE))","v":""}]
[null,null,null,null,null,null,null,null,null,null,null,null,null,null,null,null,null,null,null,null,null,null,null,null,null,null,null,null,null,null,null,null,null,null,null,null,null,null,{"$f":"IF(ISERROR(VLOOKUP(C44,#REF!,2,FALSE)),\"\",VLOOKUP(C44,#REF!,2,FALSE))","v":""}]
[null,null,null,null,null,null,null,null,null,null,null,null,null,null,null,null,null,null,null,null,null,null,null,null,null,null,null,null,null,null,null,null,null,null,null,null,null,null,{"$f":"IF(ISERROR(VLOOKUP(C45,#REF!,2,FALSE)),\"\",VLOOKUP(C45,#REF!,2,FALSE))","v":""}]
[null,null,null,null,null,null,null,null,null,null,null,null,null,null,null,null,null,null,null,null,null,null,null,null,null,null,null,null,null,null,null,null,null,null,null,null,null,null,{"$f":"IF(ISERROR(VLOOKUP(C46,#REF!,2,FALSE)),\"\",VLOOKUP(C46,#REF!,2,FALSE))","v":""}]
[null,null,null,null,null,null,null,null,null,null,null,null,null,null,null,null,null,null,null,null,null,null,null,null,null,null,null,null,null,null,null,null,null,null,null,null,null,null,{"$f":"IF(ISERROR(VLOOKUP(C47,#REF!,2,FALSE)),\"\",VLOOKUP(C47,#REF!,2,FALSE))","v":""}]
[null,null,null,null,null,null,null,null,null,null,null,null,null,null,null,null,null,null,null,null,null,null,null,null,null,null,null,null,null,null,null,null,null,null,null,null,null,null,{"$f":"IF(ISERROR(VLOOKUP(C48,#REF!,2,FALSE)),\"\",VLOOKUP(C48,#REF!,2,FALSE))","v":""}]
[null,null,null,null,null,null,null,null,null,null,null,null,null,null,null,null,null,null,null,null,null,null,null,null,null,null,null,null,null,null,null,null,null,null,null,null,null,null,{"$f":"IF(ISERROR(VLOOKUP(C49,#REF!,2,FALSE)),\"\",VLOOKUP(C49,#REF!,2,FALSE))","v":""}]
[null,null,null,null,null,null,null,null,null,null,null,null,null,null,null,null,null,null,null,null,null,null,null,null,null,null,null,null,null,null,null,null,null,null,null,null,null,null,{"$f":"IF(ISERROR(VLOOKUP(C50,#REF!,2,FALSE)),\"\",VLOOKUP(C50,#REF!,2,FALSE))","v":""}]
[null,null,null,null,null,null,null,null,null,null,null,null,null,null,null,null,null,null,null,null,null,null,null,null,null,null,null,null,null,null,null,null,null,null,null,null,null,null,{"$f":"IF(ISERROR(VLOOKUP(C51,#REF!,2,FALSE)),\"\",VLOOKUP(C51,#REF!,2,FALSE))","v":""}]
[null,null,null,null,null,null,null,null,null,null,null,null,null,null,null,null,null,null,null,null,null,null,null,null,null,null,null,null,null,null,null,null,null,null,null,null,null,null,{"$f":"IF(ISERROR(VLOOKUP(C52,#REF!,2,FALSE)),\"\",VLOOKUP(C52,#REF!,2,FALSE))","v":""}]
[null,null,null,null,null,null,null,null,null,null,null,null,null,null,null,null,null,null,null,null,null,null,null,null,null,null,null,null,null,null,null,null,null,null,null,null,null,null,{"$f":"IF(ISERROR(VLOOKUP(C53,#REF!,2,FALSE)),\"\",VLOOKUP(C53,#REF!,2,FALSE))","v":""}]
[null,null,null,null,null,null,null,null,null,null,null,null,null,null,null,null,null,null,null,null,null,null,null,null,null,null,null,null,null,null,null,null,null,null,null,null,null,null,{"$f":"IF(ISERROR(VLOOKUP(C54,#REF!,2,FALSE)),\"\",VLOOKUP(C54,#REF!,2,FALSE))","v":""}]
[null,null,null,null,null,null,null,null,null,null,null,null,null,null,null,null,null,null,null,null,null,null,null,null,null,null,null,null,null,null,null,null,null,null,null,null,null,null,{"$f":"IF(ISERROR(VLOOKUP(C55,#REF!,2,FALSE)),\"\",VLOOKUP(C55,#REF!,2,FALSE))","v":""}]
[null,null,null,null,null,null,null,null,null,null,null,null,null,null,null,null,null,null,null,null,null,null,null,null,null,null,null,null,null,null,null,null,null,null,null,null,null,null,{"$f":"IF(ISERROR(VLOOKUP(C56,#REF!,2,FALSE)),\"\",VLOOKUP(C56,#REF!,2,FALSE))","v":""}]
[null,null,null,null,null,null,null,null,null,null,null,null,null,null,null,null,null,null,null,null,null,null,null,null,null,null,null,null,null,null,null,null,null,null,null,null,null,null,{"$f":"IF(ISERROR(VLOOKUP(C57,#REF!,2,FALSE)),\"\",VLOOKUP(C57,#REF!,2,FALSE))","v":""}]
[null,null,null,null,null,null,null,null,null,null,null,null,null,null,null,null,null,null,null,null,null,null,null,null,null,null,null,null,null,null,null,null,null,null,null,null,null,null,{"$f":"IF(ISERROR(VLOOKUP(C58,#REF!,2,FALSE)),\"\",VLOOKUP(C58,#REF!,2,FALSE))","v":""}]
[null,null,null,null,null,null,null,null,null,null,null,null,null,null,null,null,null,null,null,null,null,null,null,null,null,null,null,null,null,null,null,null,null,null,null,null,null,null,{"$f":"IF(ISERROR(VLOOKUP(C59,#REF!,2,FALSE)),\"\",VLOOKUP(C59,#REF!,2,FALSE))","v":""}]
[null,null,null,null,null,null,null,null,null,null,null,null,null,null,null,null,null,null,null,null,null,null,null,null,null,null,null,null,null,null,null,null,null,null,null,null,null,null,{"$f":"IF(ISERROR(VLOOKUP(C60,#REF!,2,FALSE)),\"\",VLOOKUP(C60,#REF!,2,FALSE))","v":""}]
[null,null,null,null,null,null,null,null,null,null,null,null,null,null,null,null,null,null,null,null,null,null,null,null,null,null,null,null,null,null,null,null,null,null,null,null,null,null,{"$f":"IF(ISERROR(VLOOKUP(C61,#REF!,2,FALSE)),\"\",VLOOKUP(C61,#REF!,2,FALSE))","v":""}]
[null,null,null,null,null,null,null,null,null,null,null,null,null,null,null,null,null,null,null,null,null,null,null,null,null,null,null,null,null,null,null,null,null,null,null,null,null,null,{"$f":"IF(ISERROR(VLOOKUP(C62,#REF!,2,FALSE)),\"\",VLOOKUP(C62,#REF!,2,FALSE))","v":""}]
[null,null,null,null,null,null,null,null,null,null,null,null,null,null,null,null,null,null,null,null,null,null,null,null,null,null,null,null,null,null,null,null,null,null,null,null,null,null,{"$f":"IF(ISERROR(VLOOKUP(C63,#REF!,2,FALSE)),\"\",VLOOKUP(C63,#REF!,2,FALSE))","v":""}]
[null,null,null,null,null,null,null,null,null,null,null,null,null,null,null,null,null,null,null,null,null,null,null,null,null,null,null,null,null,null,null,null,null,null,null,null,null,null,{"$f":"IF(ISERROR(VLOOKUP(C64,#REF!,2,FALSE)),\"\",VLOOKUP(C64,#REF!,2,FALSE))","v":""}]
[null,null,null,null,null,null,null,null,null,null,null,null,null,null,null,null,null,null,null,null,null,null,null,null,null,null,null,null,null,null,null,null,null,null,null,null,null,null,{"$f":"IF(ISERROR(VLOOKUP(C65,#REF!,2,FALSE)),\"\",VLOOKUP(C65,#REF!,2,FALSE))","v":""}]
[null,null,null,null,null,null,null,null,null,null,null,null,null,null,null,null,null,null,null,null,null,null,null,null,null,null,null,null,null,null,null,null,null,null,null,null,null,null,{"$f":"IF(ISERROR(VLOOKUP(C66,#REF!,2,FALSE)),\"\",VLOOKUP(C66,#REF!,2,FALSE))","v":""}]
[null,null,null,null,null,null,null,null,null,null,null,null,null,null,null,null,null,null,null,null,null,null,null,null,null,null,null,null,null,null,null,null,null,null,null,null,null,null,{"$f":"IF(ISERROR(VLOOKUP(C67,#REF!,2,FALSE)),\"\",VLOOKUP(C67,#REF!,2,FALSE))","v":""}]
[null,null,null,null,null,null,null,null,null,null,null,null,null,null,null,null,null,null,null,null,null,null,null,null,null,null,null,null,null,null,null,null,null,null,null,null,null,null,{"$f":"IF(ISERROR(VLOOKUP(C68,#REF!,2,FALSE)),\"\",VLOOKUP(C68,#REF!,2,FALSE))","v":""}]
[null,null,null,null,null,null,null,null,null,null,null,null,null,null,null,null,null,null,null,null,null,null,null,null,null,null,null,null,null,null,null,null,null,null,null,null,null,null,{"$f":"IF(ISERROR(VLOOKUP(C69,#REF!,2,FALSE)),\"\",VLOOKUP(C69,#REF!,2,FALSE))","v":""}]
[null,null,null,null,null,null,null,null,null,null,null,null,null,null,null,null,null,null,null,null,null,null,null,null,null,null,null,null,null,null,null,null,null,null,null,null,null,null,{"$f":"IF(ISERROR(VLOOKUP(C70,#REF!,2,FALSE)),\"\",VLOOKUP(C70,#REF!,2,FALSE))","v":""}]
[null,null,null,null,null,null,null,null,null,null,null,null,null,null,null,null,null,null,null,null,null,null,null,null,null,null,null,null,null,null,null,null,null,null,null,null,null,null,{"$f":"IF(ISERROR(VLOOKUP(C71,#REF!,2,FALSE)),\"\",VLOOKUP(C71,#REF!,2,FALSE))","v":""}]
[null,null,null,null,null,null,null,null,null,null,null,null,null,null,null,null,null,null,null,null,null,null,null,null,null,null,null,null,null,null,null,null,null,null,null,null,null,null,{"$f":"IF(ISERROR(VLOOKUP(C72,#REF!,2,FALSE)),\"\",VLOOKUP(C72,#REF!,2,FALSE))","v":""}]
[null,null,null,null,null,null,null,null,null,null,null,null,null,null,null,null,null,null,null,null,null,null,null,null,null,null,null,null,null,null,null,null,null,null,null,null,null,null,{"$f":"IF(ISERROR(VLOOKUP(C73,#REF!,2,FALSE)),\"\",VLOOKUP(C73,#REF!,2,FALSE))","v":""}]
[null,null,null,null,null,null,null,null,null,null,null,null,null,null,null,null,null,null,null,null,null,null,null,null,null,null,null,null,null,null,null,null,null,null,null,null,null,null,{"$f":"IF(ISERROR(VLOOKUP(C74,#REF!,2,FALSE)),\"\",VLOOKUP(C74,#REF!,2,FALSE))","v":""}]
[null,null,null,null,null,null,null,null,null,null,null,null,null,null,null,null,null,null,null,null,null,null,null,null,null,null,null,null,null,null,null,null,null,null,null,null,null,null,{"$f":"IF(ISERROR(VLOOKUP(C75,#REF!,2,FALSE)),\"\",VLOOKUP(C75,#REF!,2,FALSE))","v":""}]
[null,null,null,null,null,null,null,null,null,null,null,null,null,null,null,null,null,null,null,null,null,null,null,null,null,null,null,null,null,null,null,null,null,null,null,null,null,null,{"$f":"IF(ISERROR(VLOOKUP(C76,#REF!,2,FALSE)),\"\",VLOOKUP(C76,#REF!,2,FALSE))","v":""}]
[null,null,null,null,null,null,null,null,null,null,null,null,null,null,null,null,null,null,null,null,null,null,null,null,null,null,null,null,null,null,null,null,null,null,null,null,null,null,{"$f":"IF(ISERROR(VLOOKUP(C77,#REF!,2,FALSE)),\"\",VLOOKUP(C77,#REF!,2,FALSE))","v":""}]
[null,null,null,null,null,null,null,null,null,null,null,null,null,null,null,null,null,null,null,null,null,null,null,null,null,null,null,null,null,null,null,null,null,null,null,null,null,null,{"$f":"IF(ISERROR(VLOOKUP(C78,#REF!,2,FALSE)),\"\",VLOOKUP(C78,#REF!,2,FALSE))","v":""}]
[null,null,null,null,null,null,null,null,null,null,null,null,null,null,null,null,null,null,null,null,null,null,null,null,null,null,null,null,null,null,null,null,null,null,null,null,null,null,{"$f":"IF(ISERROR(VLOOKUP(C79,#REF!,2,FALSE)),\"\",VLOOKUP(C79,#REF!,2,FALSE))","v":""}]
[null,null,null,null,null,null,null,null,null,null,null,null,null,null,null,null,null,null,null,null,null,null,null,null,null,null,null,null,null,null,null,null,null,null,null,null,null,null,{"$f":"IF(ISERROR(VLOOKUP(C80,#REF!,2,FALSE)),\"\",VLOOKUP(C80,#REF!,2,FALSE))","v":""}]
[null,null,null,null,null,null,null,null,null,null,null,null,null,null,null,null,null,null,null,null,null,null,null,null,null,null,null,null,null,null,null,null,null,null,null,null,null,null,{"$f":"IF(ISERROR(VLOOKUP(C81,#REF!,2,FALSE)),\"\",VLOOKUP(C81,#REF!,2,FALSE))","v":""}]
[null,null,null,null,null,null,null,null,null,null,null,null,null,null,null,null,null,null,null,null,null,null,null,null,null,null,null,null,null,null,null,null,null,null,null,null,null,null,{"$f":"IF(ISERROR(VLOOKUP(C82,#REF!,2,FALSE)),\"\",VLOOKUP(C82,#REF!,2,FALSE))","v":""}]
[null,null,null,null,null,null,null,null,null,null,null,null,null,null,null,null,null,null,null,null,null,null,null,null,null,null,null,null,null,null,null,null,null,null,null,null,null,null,{"$f":"IF(ISERROR(VLOOKUP(C83,#REF!,2,FALSE)),\"\",VLOOKUP(C83,#REF!,2,FALSE))","v":""}]
[null,null,null,null,null,null,null,null,null,null,null,null,null,null,null,null,null,null,null,null,null,null,null,null,null,null,null,null,null,null,null,null,null,null,null,null,null,null,{"$f":"IF(ISERROR(VLOOKUP(C84,#REF!,2,FALSE)),\"\",VLOOKUP(C84,#REF!,2,FALSE))","v":""}]
[null,null,null,null,null,null,null,null,null,null,null,null,null,null,null,null,null,null,null,null,null,null,null,null,null,null,null,null,null,null,null,null,null,null,null,null,null,null,{"$f":"IF(ISERROR(VLOOKUP(C85,#REF!,2,FALSE)),\"\",VLOOKUP(C85,#REF!,2,FALSE))","v":""}]
[null,null,null,null,null,null,null,null,null,null,null,null,null,null,null,null,null,null,null,null,null,null,null,null,null,null,null,null,null,null,null,null,null,null,null,null,null,null,{"$f":"IF(ISERROR(VLOOKUP(C86,#REF!,2,FALSE)),\"\",VLOOKUP(C86,#REF!,2,FALSE))","v":""}]
[null,null,null,null,null,null,null,null,null,null,null,null,null,null,null,null,null,null,null,null,null,null,null,null,null,null,null,null,null,null,null,null,null,null,null,null,null,null,{"$f":"IF(ISERROR(VLOOKUP(C87,#REF!,2,FALSE)),\"\",VLOOKUP(C87,#REF!,2,FALSE))","v":""}]
[null,null,null,null,null,null,null,null,null,null,null,null,null,null,null,null,null,null,null,null,null,null,null,null,null,null,null,null,null,null,null,null,null,null,null,null,null,null,{"$f":"IF(ISERROR(VLOOKUP(C88,#REF!,2,FALSE)),\"\",VLOOKUP(C88,#REF!,2,FALSE))","v":""}]
[null,null,null,null,null,null,null,null,null,null,null,null,null,null,null,null,null,null,null,null,null,null,null,null,null,null,null,null,null,null,null,null,null,null,null,null,null,null,{"$f":"IF(ISERROR(VLOOKUP(C89,#REF!,2,FALSE)),\"\",VLOOKUP(C89,#REF!,2,FALSE))","v":""}]
[null,null,null,null,null,null,null,null,null,null,null,null,null,null,null,null,null,null,null,null,null,null,null,null,null,null,null,null,null,null,null,null,null,null,null,null,null,null,{"$f":"IF(ISERROR(VLOOKUP(C90,#REF!,2,FALSE)),\"\",VLOOKUP(C90,#REF!,2,FALSE))","v":""}]
[null,null,null,null,null,null,null,null,null,null,null,null,null,null,null,null,null,null,null,null,null,null,null,null,null,null,null,null,null,null,null,null,null,null,null,null,null,null,{"$f":"IF(ISERROR(VLOOKUP(C91,#REF!,2,FALSE)),\"\",VLOOKUP(C91,#REF!,2,FALSE))","v":""}]
[null,null,null,null,null,null,null,null,null,null,null,null,null,null,null,null,null,null,null,null,null,null,null,null,null,null,null,null,null,null,null,null,null,null,null,null,null,null,{"$f":"IF(ISERROR(VLOOKUP(C92,#REF!,2,FALSE)),\"\",VLOOKUP(C92,#REF!,2,FALSE))","v":""}]
[null,null,null,null,null,null,null,null,null,null,null,null,null,null,null,null,null,null,null,null,null,null,null,null,null,null,null,null,null,null,null,null,null,null,null,null,null,null,{"$f":"IF(ISERROR(VLOOKUP(C93,#REF!,2,FALSE)),\"\",VLOOKUP(C93,#REF!,2,FALSE))","v":""}]
[null,null,null,null,null,null,null,null,null,null,null,null,null,null,null,null,null,null,null,null,null,null,null,null,null,null,null,null,null,null,null,null,null,null,null,null,null,null,{"$f":"IF(ISERROR(VLOOKUP(C94,#REF!,2,FALSE)),\"\",VLOOKUP(C94,#REF!,2,FALSE))","v":""}]
[null,null,null,null,null,null,null,null,null,null,null,null,null,null,null,null,null,null,null,null,null,null,null,null,null,null,null,null,null,null,null,null,null,null,null,null,null,null,{"$f":"IF(ISERROR(VLOOKUP(C95,#REF!,2,FALSE)),\"\",VLOOKUP(C95,#REF!,2,FALSE))","v":""}]
[null,null,null,null,null,null,null,null,null,null,null,null,null,null,null,null,null,null,null,null,null,null,null,null,null,null,null,null,null,null,null,null,null,null,null,null,null,null,{"$f":"IF(ISERROR(VLOOKUP(C96,#REF!,2,FALSE)),\"\",VLOOKUP(C96,#REF!,2,FALSE))","v":""}]
[null,null,null,null,null,null,null,null,null,null,null,null,null,null,null,null,null,null,null,null,null,null,null,null,null,null,null,null,null,null,null,null,null,null,null,null,null,null,{"$f":"IF(ISERROR(VLOOKUP(C97,#REF!,2,FALSE)),\"\",VLOOKUP(C97,#REF!,2,FALSE))","v":""}]
[null,null,null,null,null,null,null,null,null,null,null,null,null,null,null,null,null,null,null,null,null,null,null,null,null,null,null,null,null,null,null,null,null,null,null,null,null,null,{"$f":"IF(ISERROR(VLOOKUP(C98,#REF!,2,FALSE)),\"\",VLOOKUP(C98,#REF!,2,FALSE))","v":""}]
[null,null,null,null,null,null,null,null,null,null,null,null,null,null,null,null,null,null,null,null,null,null,null,null,null,null,null,null,null,null,null,null,null,null,null,null,null,null,{"$f":"IF(ISERROR(VLOOKUP(C99,#REF!,2,FALSE)),\"\",VLOOKUP(C99,#REF!,2,FALSE))","v":""}]
[null,null,null,null,null,null,null,null,null,null,null,null,null,null,null,null,null,null,null,null,null,null,null,null,null,null,null,null,null,null,null,null,null,null,null,null,null,null,{"$f":"IF(ISERROR(VLOOKUP(C100,#REF!,2,FALSE)),\"\",VLOOKUP(C100,#REF!,2,FALSE))","v":""}]
[null,null,null,null,null,null,null,null,null,null,null,null,null,null,null,null,null,null,null,null,null,null,null,null,null,null,null,null,null,null,null,null,null,null,null,null,null,null,{"$f":"IF(ISERROR(VLOOKUP(C101,#REF!,2,FALSE)),\"\",VLOOKUP(C101,#REF!,2,FALSE))","v":""}]
[null,null,null,null,null,null,null,null,null,null,null,null,null,null,null,null,null,null,null,null,null,null,null,null,null,null,null,null,null,null,null,null,null,null,null,null,null,null,{"$f":"IF(ISERROR(VLOOKUP(C102,#REF!,2,FALSE)),\"\",VLOOKUP(C102,#REF!,2,FALSE))","v":""}]
[null,null,null,null,null,null,null,null,null,null,null,null,null,null,null,null,null,null,null,null,null,null,null,null,null,null,null,null,null,null,null,null,null,null,null,null,null,null,{"$f":"IF(ISERROR(VLOOKUP(C103,#REF!,2,FALSE)),\"\",VLOOKUP(C103,#REF!,2,FALSE))","v":""}]
[null,null,null,null,null,null,null,null,null,null,null,null,null,null,null,null,null,null,null,null,null,null,null,null,null,null,null,null,null,null,null,null,null,null,null,null,null,null,{"$f":"IF(ISERROR(VLOOKUP(C104,#REF!,2,FALSE)),\"\",VLOOKUP(C104,#REF!,2,FALSE))","v":""}]
[null,null,null,null,null,null,null,null,null,null,null,null,null,null,null,null,null,null,null,null,null,null,null,null,null,null,null,null,null,null,null,null,null,null,null,null,null,null,{"$f":"IF(ISERROR(VLOOKUP(C105,#REF!,2,FALSE)),\"\",VLOOKUP(C105,#REF!,2,FALSE))","v":""}]
[null,null,null,null,null,null,null,null,null,null,null,null,null,null,null,null,null,null,null,null,null,null,null,null,null,null,null,null,null,null,null,null,null,null,null,null,null,null,{"$f":"IF(ISERROR(VLOOKUP(C106,#REF!,2,FALSE)),\"\",VLOOKUP(C106,#REF!,2,FALSE))","v":""}]
[null,null,null,null,null,null,null,null,null,null,null,null,null,null,null,null,null,null,null,null,null,null,null,null,null,null,null,null,null,null,null,null,null,null,null,null,null,null,{"$f":"IF(ISERROR(VLOOKUP(C107,#REF!,2,FALSE)),\"\",VLOOKUP(C107,#REF!,2,FALSE))","v":""}]
[null,null,null,null,null,null,null,null,null,null,null,null,null,null,null,null,null,null,null,null,null,null,null,null,null,null,null,null,null,null,null,null,null,null,null,null,null,null,{"$f":"IF(ISERROR(VLOOKUP(C108,#REF!,2,FALSE)),\"\",VLOOKUP(C108,#REF!,2,FALSE))","v":""}]
[null,null,null,null,null,null,null,null,null,null,null,null,null,null,null,null,null,null,null,null,null,null,null,null,null,null,null,null,null,null,null,null,null,null,null,null,null,null,{"$f":"IF(ISERROR(VLOOKUP(C109,#REF!,2,FALSE)),\"\",VLOOKUP(C109,#REF!,2,FALSE))","v":""}]
[null,null,null,null,null,null,null,null,null,null,null,null,null,null,null,null,null,null,null,null,null,null,null,null,null,null,null,null,null,null,null,null,null,null,null,null,null,null,{"$f":"IF(ISERROR(VLOOKUP(C110,#REF!,2,FALSE)),\"\",VLOOKUP(C110,#REF!,2,FALSE))","v":""}]
[null,null,null,null,null,null,null,null,null,null,null,null,null,null,null,null,null,null,null,null,null,null,null,null,null,null,null,null,null,null,null,null,null,null,null,null,null,null,{"$f":"IF(ISERROR(VLOOKUP(C111,#REF!,2,FALSE)),\"\",VLOOKUP(C111,#REF!,2,FALSE))","v":""}]
[null,null,null,null,null,null,null,null,null,null,null,null,null,null,null,null,null,null,null,null,null,null,null,null,null,null,null,null,null,null,null,null,null,null,null,null,null,null,{"$f":"IF(ISERROR(VLOOKUP(C112,#REF!,2,FALSE)),\"\",VLOOKUP(C112,#REF!,2,FALSE))","v":""}]
[null,null,null,null,null,null,null,null,null,null,null,null,null,null,null,null,null,null,null,null,null,null,null,null,null,null,null,null,null,null,null,null,null,null,null,null,null,null,{"$f":"IF(ISERROR(VLOOKUP(C113,#REF!,2,FALSE)),\"\",VLOOKUP(C113,#REF!,2,FALSE))","v":""}]
[null,null,null,null,null,null,null,null,null,null,null,null,null,null,null,null,null,null,null,null,null,null,null,null,null,null,null,null,null,null,null,null,null,null,null,null,null,null,{"$f":"IF(ISERROR(VLOOKUP(C114,#REF!,2,FALSE)),\"\",VLOOKUP(C114,#REF!,2,FALSE))","v":""}]
[null,null,null,null,null,null,null,null,null,null,null,null,null,null,null,null,null,null,null,null,null,null,null,null,null,null,null,null,null,null,null,null,null,null,null,null,null,null,{"$f":"IF(ISERROR(VLOOKUP(C115,#REF!,2,FALSE)),\"\",VLOOKUP(C115,#REF!,2,FALSE))","v":""}]
[null,null,null,null,null,null,null,null,null,null,null,null,null,null,null,null,null,null,null,null,null,null,null,null,null,null,null,null,null,null,null,null,null,null,null,null,null,null,{"$f":"IF(ISERROR(VLOOKUP(C116,#REF!,2,FALSE)),\"\",VLOOKUP(C116,#REF!,2,FALSE))","v":""}]
[null,null,null,null,null,null,null,null,null,null,null,null,null,null,null,null,null,null,null,null,null,null,null,null,null,null,null,null,null,null,null,null,null,null,null,null,null,null,{"$f":"IF(ISERROR(VLOOKUP(C117,#REF!,2,FALSE)),\"\",VLOOKUP(C117,#REF!,2,FALSE))","v":""}]
[null,null,null,null,null,null,null,null,null,null,null,null,null,null,null,null,null,null,null,null,null,null,null,null,null,null,null,null,null,null,null,null,null,null,null,null,null,null,{"$f":"IF(ISERROR(VLOOKUP(C118,#REF!,2,FALSE)),\"\",VLOOKUP(C118,#REF!,2,FALSE))","v":""}]
[null,null,null,null,null,null,null,null,null,null,null,null,null,null,null,null,null,null,null,null,null,null,null,null,null,null,null,null,null,null,null,null,null,null,null,null,null,null,{"$f":"IF(ISERROR(VLOOKUP(C119,#REF!,2,FALSE)),\"\",VLOOKUP(C119,#REF!,2,FALSE))","v":""}]
[null,null,null,null,null,null,null,null,null,null,null,null,null,null,null,null,null,null,null,null,null,null,null,null,null,null,null,null,null,null,null,null,null,null,null,null,null,null,{"$f":"IF(ISERROR(VLOOKUP(C120,#REF!,2,FALSE)),\"\",VLOOKUP(C120,#REF!,2,FALSE))","v":""}]
[null,null,null,null,null,null,null,null,null,null,null,null,null,null,null,null,null,null,null,null,null,null,null,null,null,null,null,null,null,null,null,null,null,null,null,null,null,null,{"$f":"IF(ISERROR(VLOOKUP(C121,#REF!,2,FALSE)),\"\",VLOOKUP(C121,#REF!,2,FALSE))","v":""}]
[null,null,null,null,null,null,null,null,null,null,null,null,null,null,null,null,null,null,null,null,null,null,null,null,null,null,null,null,null,null,null,null,null,null,null,null,null,null,{"$f":"IF(ISERROR(VLOOKUP(C122,#REF!,2,FALSE)),\"\",VLOOKUP(C122,#REF!,2,FALSE))","v":""}]
[null,null,null,null,null,null,null,null,null,null,null,null,null,null,null,null,null,null,null,null,null,null,null,null,null,null,null,null,null,null,null,null,null,null,null,null,null,null,{"$f":"IF(ISERROR(VLOOKUP(C123,#REF!,2,FALSE)),\"\",VLOOKUP(C123,#REF!,2,FALSE))","v":""}]
[null,null,null,null,null,null,null,null,null,null,null,null,null,null,null,null,null,null,null,null,null,null,null,null,null,null,null,null,null,null,null,null,null,null,null,null,null,null,{"$f":"IF(ISERROR(VLOOKUP(C124,#REF!,2,FALSE)),\"\",VLOOKUP(C124,#REF!,2,FALSE))","v":""}]
[null,null,null,null,null,null,null,null,null,null,null,null,null,null,null,null,null,null,null,null,null,null,null,null,null,null,null,null,null,null,null,null,null,null,null,null,null,null,{"$f":"IF(ISERROR(VLOOKUP(C125,#REF!,2,FALSE)),\"\",VLOOKUP(C125,#REF!,2,FALSE))","v":""}]
[null,null,null,null,null,null,null,null,null,null,null,null,null,null,null,null,null,null,null,null,null,null,null,null,null,null,null,null,null,null,null,null,null,null,null,null,null,null,{"$f":"IF(ISERROR(VLOOKUP(C126,#REF!,2,FALSE)),\"\",VLOOKUP(C126,#REF!,2,FALSE))","v":""}]
[null,null,null,null,null,null,null,null,null,null,null,null,null,null,null,null,null,null,null,null,null,null,null,null,null,null,null,null,null,null,null,null,null,null,null,null,null,null,{"$f":"IF(ISERROR(VLOOKUP(C127,#REF!,2,FALSE)),\"\",VLOOKUP(C127,#REF!,2,FALSE))","v":""}]
[null,null,null,null,null,null,null,null,null,null,null,null,null,null,null,null,null,null,null,null,null,null,null,null,null,null,null,null,null,null,null,null,null,null,null,null,null,null,{"$f":"IF(ISERROR(VLOOKUP(C128,#REF!,2,FALSE)),\"\",VLOOKUP(C128,#REF!,2,FALSE))","v":""}]
[null,null,null,null,null,null,null,null,null,null,null,null,null,null,null,null,null,null,null,null,null,null,null,null,null,null,null,null,null,null,null,null,null,null,null,null,null,null,{"$f":"IF(ISERROR(VLOOKUP(C129,#REF!,2,FALSE)),\"\",VLOOKUP(C129,#REF!,2,FALSE))","v":""}]
[null,null,null,null,null,null,null,null,null,null,null,null,null,null,null,null,null,null,null,null,null,null,null,null,null,null,null,null,null,null,null,null,null,null,null,null,null,null,{"$f":"IF(ISERROR(VLOOKUP(C130,#REF!,2,FALSE)),\"\",VLOOKUP(C130,#REF!,2,FALSE))","v":""}]
[null,null,null,null,null,null,null,null,null,null,null,null,null,null,null,null,null,null,null,null,null,null,null,null,null,null,null,null,null,null,null,null,null,null,null,null,null,null,{"$f":"IF(ISERROR(VLOOKUP(C131,#REF!,2,FALSE)),\"\",VLOOKUP(C131,#REF!,2,FALSE))","v":""}]
[null,null,null,null,null,null,null,null,null,null,null,null,null,null,null,null,null,null,null,null,null,null,null,null,null,null,null,null,null,null,null,null,null,null,null,null,null,null,{"$f":"IF(ISERROR(VLOOKUP(C132,#REF!,2,FALSE)),\"\",VLOOKUP(C132,#REF!,2,FALSE))","v":""}]
[null,null,null,null,null,null,null,null,null,null,null,null,null,null,null,null,null,null,null,null,null,null,null,null,null,null,null,null,null,null,null,null,null,null,null,null,null,null,{"$f":"IF(ISERROR(VLOOKUP(C133,#REF!,2,FALSE)),\"\",VLOOKUP(C133,#REF!,2,FALSE))","v":""}]
[null,null,null,null,null,null,null,null,null,null,null,null,null,null,null,null,null,null,null,null,null,null,null,null,null,null,null,null,null,null,null,null,null,null,null,null,null,null,{"$f":"IF(ISERROR(VLOOKUP(C134,#REF!,2,FALSE)),\"\",VLOOKUP(C134,#REF!,2,FALSE))","v":""}]
[null,null,null,null,null,null,null,null,null,null,null,null,null,null,null,null,null,null,null,null,null,null,null,null,null,null,null,null,null,null,null,null,null,null,null,null,null,null,{"$f":"IF(ISERROR(VLOOKUP(C135,#REF!,2,FALSE)),\"\",VLOOKUP(C135,#REF!,2,FALSE))","v":""}]
[null,null,null,null,null,null,null,null,null,null,null,null,null,null,null,null,null,null,null,null,null,null,null,null,null,null,null,null,null,null,null,null,null,null,null,null,null,null,{"$f":"IF(ISERROR(VLOOKUP(C136,#REF!,2,FALSE)),\"\",VLOOKUP(C136,#REF!,2,FALSE))","v":""}]
[null,null,null,null,null,null,null,null,null,null,null,null,null,null,null,null,null,null,null,null,null,null,null,null,null,null,null,null,null,null,null,null,null,null,null,null,null,null,{"$f":"IF(ISERROR(VLOOKUP(C137,#REF!,2,FALSE)),\"\",VLOOKUP(C137,#REF!,2,FALSE))","v":""}]
[null,null,null,null,null,null,null,null,null,null,null,null,null,null,null,null,null,null,null,null,null,null,null,null,null,null,null,null,null,null,null,null,null,null,null,null,null,null,{"$f":"IF(ISERROR(VLOOKUP(C138,#REF!,2,FALSE)),\"\",VLOOKUP(C138,#REF!,2,FALSE))","v":""}]
[null,null,null,null,null,null,null,null,null,null,null,null,null,null,null,null,null,null,null,null,null,null,null,null,null,null,null,null,null,null,null,null,null,null,null,null,null,null,{"$f":"IF(ISERROR(VLOOKUP(C139,#REF!,2,FALSE)),\"\",VLOOKUP(C139,#REF!,2,FALSE))","v":""}]
[null,null,null,null,null,null,null,null,null,null,null,null,null,null,null,null,null,null,null,null,null,null,null,null,null,null,null,null,null,null,null,null,null,null,null,null,null,null,{"$f":"IF(ISERROR(VLOOKUP(C140,#REF!,2,FALSE)),\"\",VLOOKUP(C140,#REF!,2,FALSE))","v":""}]
[null,null,null,null,null,null,null,null,null,null,null,null,null,null,null,null,null,null,null,null,null,null,null,null,null,null,null,null,null,null,null,null,null,null,null,null,null,null,{"$f":"IF(ISERROR(VLOOKUP(C141,#REF!,2,FALSE)),\"\",VLOOKUP(C141,#REF!,2,FALSE))","v":""}]
[null,null,null,null,null,null,null,null,null,null,null,null,null,null,null,null,null,null,null,null,null,null,null,null,null,null,null,null,null,null,null,null,null,null,null,null,null,null,{"$f":"IF(ISERROR(VLOOKUP(C142,#REF!,2,FALSE)),\"\",VLOOKUP(C142,#REF!,2,FALSE))","v":""}]
[null,null,null,null,null,null,null,null,null,null,null,null,null,null,null,null,null,null,null,null,null,null,null,null,null,null,null,null,null,null,null,null,null,null,null,null,null,null,{"$f":"IF(ISERROR(VLOOKUP(C143,#REF!,2,FALSE)),\"\",VLOOKUP(C143,#REF!,2,FALSE))","v":""}]
[null,null,null,null,null,null,null,null,null,null,null,null,null,null,null,null,null,null,null,null,null,null,null,null,null,null,null,null,null,null,null,null,null,null,null,null,null,null,{"$f":"IF(ISERROR(VLOOKUP(C144,#REF!,2,FALSE)),\"\",VLOOKUP(C144,#REF!,2,FALSE))","v":""}]
[null,null,null,null,null,null,null,null,null,null,null,null,null,null,null,null,null,null,null,null,null,null,null,null,null,null,null,null,null,null,null,null,null,null,null,null,null,null,{"$f":"IF(ISERROR(VLOOKUP(C145,#REF!,2,FALSE)),\"\",VLOOKUP(C145,#REF!,2,FALSE))","v":""}]
[null,null,null,null,null,null,null,null,null,null,null,null,null,null,null,null,null,null,null,null,null,null,null,null,null,null,null,null,null,null,null,null,null,null,null,null,null,null,{"$f":"IF(ISERROR(VLOOKUP(C146,#REF!,2,FALSE)),\"\",VLOOKUP(C146,#REF!,2,FALSE))","v":""}]
[null,null,null,null,null,null,null,null,null,null,null,null,null,null,null,null,null,null,null,null,null,null,null,null,null,null,null,null,null,null,null,null,null,null,null,null,null,null,{"$f":"IF(ISERROR(VLOOKUP(C147,#REF!,2,FALSE)),\"\",VLOOKUP(C147,#REF!,2,FALSE))","v":""}]
[null,null,null,null,null,null,null,null,null,null,null,null,null,null,null,null,null,null,null,null,null,null,null,null,null,null,null,null,null,null,null,null,null,null,null,null,null,null,{"$f":"IF(ISERROR(VLOOKUP(C148,#REF!,2,FALSE)),\"\",VLOOKUP(C148,#REF!,2,FALSE))","v":""}]
[null,null,null,null,null,null,null,null,null,null,null,null,null,null,null,null,null,null,null,null,null,null,null,null,null,null,null,null,null,null,null,null,null,null,null,null,null,null,{"$f":"IF(ISERROR(VLOOKUP(C149,#REF!,2,FALSE)),\"\",VLOOKUP(C149,#REF!,2,FALSE))","v":""}]
[null,null,null,null,null,null,null,null,null,null,null,null,null,null,null,null,null,null,null,null,null,null,null,null,null,null,null,null,null,null,null,null,null,null,null,null,null,null,{"$f":"IF(ISERROR(VLOOKUP(C150,#REF!,2,FALSE)),\"\",VLOOKUP(C150,#REF!,2,FALSE))","v":""}]
[null,null,null,null,null,null,null,null,null,null,null,null,null,null,null,null,null,null,null,null,null,null,null,null,null,null,null,null,null,null,null,null,null,null,null,null,null,null,{"$f":"IF(ISERROR(VLOOKUP(C151,#REF!,2,FALSE)),\"\",VLOOKUP(C151,#REF!,2,FALSE))","v":""}]
[null,null,null,null,null,null,null,null,null,null,null,null,null,null,null,null,null,null,null,null,null,null,null,null,null,null,null,null,null,null,null,null,null,null,null,null,null,null,{"$f":"IF(ISERROR(VLOOKUP(C152,#REF!,2,FALSE)),\"\",VLOOKUP(C152,#REF!,2,FALSE))","v":""}]
[null,null,null,null,null,null,null,null,null,null,null,null,null,null,null,null,null,null,null,null,null,null,null,null,null,null,null,null,null,null,null,null,null,null,null,null,null,null,{"$f":"IF(ISERROR(VLOOKUP(C153,#REF!,2,FALSE)),\"\",VLOOKUP(C153,#REF!,2,FALSE))","v":""}]
[null,null,null,null,null,null,null,null,null,null,null,null,null,null,null,null,null,null,null,null,null,null,null,null,null,null,null,null,null,null,null,null,null,null,null,null,null,null,{"$f":"IF(ISERROR(VLOOKUP(C154,#REF!,2,FALSE)),\"\",VLOOKUP(C154,#REF!,2,FALSE))","v":""}]
[null,null,null,null,null,null,null,null,null,null,null,null,null,null,null,null,null,null,null,null,null,null,null,null,null,null,null,null,null,null,null,null,null,null,null,null,null,null,{"$f":"IF(ISERROR(VLOOKUP(C155,#REF!,2,FALSE)),\"\",VLOOKUP(C155,#REF!,2,FALSE))","v":""}]
[null,null,null,null,null,null,null,null,null,null,null,null,null,null,null,null,null,null,null,null,null,null,null,null,null,null,null,null,null,null,null,null,null,null,null,null,null,null,{"$f":"IF(ISERROR(VLOOKUP(C156,#REF!,2,FALSE)),\"\",VLOOKUP(C156,#REF!,2,FALSE))","v":""}]
[null,null,null,null,null,null,null,null,null,null,null,null,null,null,null,null,null,null,null,null,null,null,null,null,null,null,null,null,null,null,null,null,null,null,null,null,null,null,{"$f":"IF(ISERROR(VLOOKUP(C157,#REF!,2,FALSE)),\"\",VLOOKUP(C157,#REF!,2,FALSE))","v":""}]
[null,null,null,null,null,null,null,null,null,null,null,null,null,null,null,null,null,null,null,null,null,null,null,null,null,null,null,null,null,null,null,null,null,null,null,null,null,null,{"$f":"IF(ISERROR(VLOOKUP(C158,#REF!,2,FALSE)),\"\",VLOOKUP(C158,#REF!,2,FALSE))","v":""}]
[null,null,null,null,null,null,null,null,null,null,null,null,null,null,null,null,null,null,null,null,null,null,null,null,null,null,null,null,null,null,null,null,null,null,null,null,null,null,{"$f":"IF(ISERROR(VLOOKUP(C159,#REF!,2,FALSE)),\"\",VLOOKUP(C159,#REF!,2,FALSE))","v":""}]
[null,null,null,null,null,null,null,null,null,null,null,null,null,null,null,null,null,null,null,null,null,null,null,null,null,null,null,null,null,null,null,null,null,null,null,null,null,null,{"$f":"IF(ISERROR(VLOOKUP(C160,#REF!,2,FALSE)),\"\",VLOOKUP(C160,#REF!,2,FALSE))","v":""}]
[null,null,null,null,null,null,null,null,null,null,null,null,null,null,null,null,null,null,null,null,null,null,null,null,null,null,null,null,null,null,null,null,null,null,null,null,null,null,{"$f":"IF(ISERROR(VLOOKUP(C161,#REF!,2,FALSE)),\"\",VLOOKUP(C161,#REF!,2,FALSE))","v":""}]
[null,null,null,null,null,null,null,null,null,null,null,null,null,null,null,null,null,null,null,null,null,null,null,null,null,null,null,null,null,null,null,null,null,null,null,null,null,null,{"$f":"IF(ISERROR(VLOOKUP(C162,#REF!,2,FALSE)),\"\",VLOOKUP(C162,#REF!,2,FALSE))","v":""}]
[null,null,null,null,null,null,null,null,null,null,null,null,null,null,null,null,null,null,null,null,null,null,null,null,null,null,null,null,null,null,null,null,null,null,null,null,null,null,{"$f":"IF(ISERROR(VLOOKUP(C163,#REF!,2,FALSE)),\"\",VLOOKUP(C163,#REF!,2,FALSE))","v":""}]
[null,null,null,null,null,null,null,null,null,null,null,null,null,null,null,null,null,null,null,null,null,null,null,null,null,null,null,null,null,null,null,null,null,null,null,null,null,null,{"$f":"IF(ISERROR(VLOOKUP(C164,#REF!,2,FALSE)),\"\",VLOOKUP(C164,#REF!,2,FALSE))","v":""}]
[null,null,null,null,null,null,null,null,null,null,null,null,null,null,null,null,null,null,null,null,null,null,null,null,null,null,null,null,null,null,null,null,null,null,null,null,null,null,{"$f":"IF(ISERROR(VLOOKUP(C165,#REF!,2,FALSE)),\"\",VLOOKUP(C165,#REF!,2,FALSE))","v":""}]
[null,null,null,null,null,null,null,null,null,null,null,null,null,null,null,null,null,null,null,null,null,null,null,null,null,null,null,null,null,null,null,null,null,null,null,null,null,null,{"$f":"IF(ISERROR(VLOOKUP(C166,#REF!,2,FALSE)),\"\",VLOOKUP(C166,#REF!,2,FALSE))","v":""}]
[null,null,null,null,null,null,null,null,null,null,null,null,null,null,null,null,null,null,null,null,null,null,null,null,null,null,null,null,null,null,null,null,null,null,null,null,null,null,{"$f":"IF(ISERROR(VLOOKUP(C167,#REF!,2,FALSE)),\"\",VLOOKUP(C167,#REF!,2,FALSE))","v":""}]
[null,null,null,null,null,null,null,null,null,null,null,null,null,null,null,null,null,null,null,null,null,null,null,null,null,null,null,null,null,null,null,null,null,null,null,null,null,null,{"$f":"IF(ISERROR(VLOOKUP(C168,#REF!,2,FALSE)),\"\",VLOOKUP(C168,#REF!,2,FALSE))","v":""}]
[null,null,null,null,null,null,null,null,null,null,null,null,null,null,null,null,null,null,null,null,null,null,null,null,null,null,null,null,null,null,null,null,null,null,null,null,null,null,{"$f":"IF(ISERROR(VLOOKUP(C169,#REF!,2,FALSE)),\"\",VLOOKUP(C169,#REF!,2,FALSE))","v":""}]
[null,null,null,null,null,null,null,null,null,null,null,null,null,null,null,null,null,null,null,null,null,null,null,null,null,null,null,null,null,null,null,null,null,null,null,null,null,null,{"$f":"IF(ISERROR(VLOOKUP(C170,#REF!,2,FALSE)),\"\",VLOOKUP(C170,#REF!,2,FALSE))","v":""}]
[null,null,null,null,null,null,null,null,null,null,null,null,null,null,null,null,null,null,null,null,null,null,null,null,null,null,null,null,null,null,null,null,null,null,null,null,null,null,{"$f":"IF(ISERROR(VLOOKUP(C171,#REF!,2,FALSE)),\"\",VLOOKUP(C171,#REF!,2,FALSE))","v":""}]
[null,null,null,null,null,null,null,null,null,null,null,null,null,null,null,null,null,null,null,null,null,null,null,null,null,null,null,null,null,null,null,null,null,null,null,null,null,null,{"$f":"IF(ISERROR(VLOOKUP(C172,#REF!,2,FALSE)),\"\",VLOOKUP(C172,#REF!,2,FALSE))","v":""}]
[null,null,null,null,null,null,null,null,null,null,null,null,null,null,null,null,null,null,null,null,null,null,null,null,null,null,null,null,null,null,null,null,null,null,null,null,null,null,{"$f":"IF(ISERROR(VLOOKUP(C173,#REF!,2,FALSE)),\"\",VLOOKUP(C173,#REF!,2,FALSE))","v":""}]
[null,null,null,null,null,null,null,null,null,null,null,null,null,null,null,null,null,null,null,null,null,null,null,null,null,null,null,null,null,null,null,null,null,null,null,null,null,null,{"$f":"IF(ISERROR(VLOOKUP(C174,#REF!,2,FALSE)),\"\",VLOOKUP(C174,#REF!,2,FALSE))","v":""}]
[null,null,null,null,null,null,null,null,null,null,null,null,null,null,null,null,null,null,null,null,null,null,null,null,null,null,null,null,null,null,null,null,null,null,null,null,null,null,{"$f":"IF(ISERROR(VLOOKUP(C175,#REF!,2,FALSE)),\"\",VLOOKUP(C175,#REF!,2,FALSE))","v":""}]
[null,null,null,null,null,null,null,null,null,null,null,null,null,null,null,null,null,null,null,null,null,null,null,null,null,null,null,null,null,null,null,null,null,null,null,null,null,null,{"$f":"IF(ISERROR(VLOOKUP(C176,#REF!,2,FALSE)),\"\",VLOOKUP(C176,#REF!,2,FALSE))","v":""}]
[null,null,null,null,null,null,null,null,null,null,null,null,null,null,null,null,null,null,null,null,null,null,null,null,null,null,null,null,null,null,null,null,null,null,null,null,null,null,{"$f":"IF(ISERROR(VLOOKUP(C177,#REF!,2,FALSE)),\"\",VLOOKUP(C177,#REF!,2,FALSE))","v":""}]
[null,null,null,null,null,null,null,null,null,null,null,null,null,null,null,null,null,null,null,null,null,null,null,null,null,null,null,null,null,null,null,null,null,null,null,null,null,null,{"$f":"IF(ISERROR(VLOOKUP(C178,#REF!,2,FALSE)),\"\",VLOOKUP(C178,#REF!,2,FALSE))","v":""}]
[null,null,null,null,null,null,null,null,null,null,null,null,null,null,null,null,null,null,null,null,null,null,null,null,null,null,null,null,null,null,null,null,null,null,null,null,null,null,{"$f":"IF(ISERROR(VLOOKUP(C179,#REF!,2,FALSE)),\"\",VLOOKUP(C179,#REF!,2,FALSE))","v":""}]
[null,null,null,null,null,null,null,null,null,null,null,null,null,null,null,null,null,null,null,null,null,null,null,null,null,null,null,null,null,null,null,null,null,null,null,null,null,null,{"$f":"IF(ISERROR(VLOOKUP(C180,#REF!,2,FALSE)),\"\",VLOOKUP(C180,#REF!,2,FALSE))","v":""}]
[null,null,null,null,null,null,null,null,null,null,null,null,null,null,null,null,null,null,null,null,null,null,null,null,null,null,null,null,null,null,null,null,null,null,null,null,null,null,{"$f":"IF(ISERROR(VLOOKUP(C181,#REF!,2,FALSE)),\"\",VLOOKUP(C181,#REF!,2,FALSE))","v":""}]
[null,null,null,null,null,null,null,null,null,null,null,null,null,null,null,null,null,null,null,null,null,null,null,null,null,null,null,null,null,null,null,null,null,null,null,null,null,null,{"$f":"IF(ISERROR(VLOOKUP(C182,#REF!,2,FALSE)),\"\",VLOOKUP(C182,#REF!,2,FALSE))","v":""}]
[null,null,null,null,null,null,null,null,null,null,null,null,null,null,null,null,null,null,null,null,null,null,null,null,null,null,null,null,null,null,null,null,null,null,null,null,null,null,{"$f":"IF(ISERROR(VLOOKUP(C183,#REF!,2,FALSE)),\"\",VLOOKUP(C183,#REF!,2,FALSE))","v":""}]
[null,null,null,null,null,null,null,null,null,null,null,null,null,null,null,null,null,null,null,null,null,null,null,null,null,null,null,null,null,null,null,null,null,null,null,null,null,null,{"$f":"IF(ISERROR(VLOOKUP(C184,#REF!,2,FALSE)),\"\",VLOOKUP(C184,#REF!,2,FALSE))","v":""}]
[null,null,null,null,null,null,null,null,null,null,null,null,null,null,null,null,null,null,null,null,null,null,null,null,null,null,null,null,null,null,null,null,null,null,null,null,null,null,{"$f":"IF(ISERROR(VLOOKUP(C185,#REF!,2,FALSE)),\"\",VLOOKUP(C185,#REF!,2,FALSE))","v":""}]
[null,null,null,null,null,null,null,null,null,null,null,null,null,null,null,null,null,null,null,null,null,null,null,null,null,null,null,null,null,null,null,null,null,null,null,null,null,null,{"$f":"IF(ISERROR(VLOOKUP(C186,#REF!,2,FALSE)),\"\",VLOOKUP(C186,#REF!,2,FALSE))","v":""}]
[null,null,null,null,null,null,null,null,null,null,null,null,null,null,null,null,null,null,null,null,null,null,null,null,null,null,null,null,null,null,null,null,null,null,null,null,null,null,{"$f":"IF(ISERROR(VLOOKUP(C187,#REF!,2,FALSE)),\"\",VLOOKUP(C187,#REF!,2,FALSE))","v":""}]
[null,null,null,null,null,null,null,null,null,null,null,null,null,null,null,null,null,null,null,null,null,null,null,null,null,null,null,null,null,null,null,null,null,null,null,null,null,null,{"$f":"IF(ISERROR(VLOOKUP(C188,#REF!,2,FALSE)),\"\",VLOOKUP(C188,#REF!,2,FALSE))","v":""}]
[null,null,null,null,null,null,null,null,null,null,null,null,null,null,null,null,null,null,null,null,null,null,null,null,null,null,null,null,null,null,null,null,null,null,null,null,null,null,{"$f":"IF(ISERROR(VLOOKUP(C189,#REF!,2,FALSE)),\"\",VLOOKUP(C189,#REF!,2,FALSE))","v":""}]
[null,null,null,null,null,null,null,null,null,null,null,null,null,null,null,null,null,null,null,null,null,null,null,null,null,null,null,null,null,null,null,null,null,null,null,null,null,null,{"$f":"IF(ISERROR(VLOOKUP(C190,#REF!,2,FALSE)),\"\",VLOOKUP(C190,#REF!,2,FALSE))","v":""}]
[null,null,null,null,null,null,null,null,null,null,null,null,null,null,null,null,null,null,null,null,null,null,null,null,null,null,null,null,null,null,null,null,null,null,null,null,null,null,{"$f":"IF(ISERROR(VLOOKUP(C191,#REF!,2,FALSE)),\"\",VLOOKUP(C191,#REF!,2,FALSE))","v":""}]
[null,null,null,null,null,null,null,null,null,null,null,null,null,null,null,null,null,null,null,null,null,null,null,null,null,null,null,null,null,null,null,null,null,null,null,null,null,null,{"$f":"IF(ISERROR(VLOOKUP(C192,#REF!,2,FALSE)),\"\",VLOOKUP(C192,#REF!,2,FALSE))","v":""}]
[null,null,null,null,null,null,null,null,null,null,null,null,null,null,null,null,null,null,null,null,null,null,null,null,null,null,null,null,null,null,null,null,null,null,null,null,null,null,{"$f":"IF(ISERROR(VLOOKUP(C193,#REF!,2,FALSE)),\"\",VLOOKUP(C193,#REF!,2,FALSE))","v":""}]
[null,null,null,null,null,null,null,null,null,null,null,null,null,null,null,null,null,null,null,null,null,null,null,null,null,null,null,null,null,null,null,null,null,null,null,null,null,null,{"$f":"IF(ISERROR(VLOOKUP(C194,#REF!,2,FALSE)),\"\",VLOOKUP(C194,#REF!,2,FALSE))","v":""}]
[null,null,null,null,null,null,null,null,null,null,null,null,null,null,null,null,null,null,null,null,null,null,null,null,null,null,null,null,null,null,null,null,null,null,null,null,null,null,{"$f":"IF(ISERROR(VLOOKUP(C195,#REF!,2,FALSE)),\"\",VLOOKUP(C195,#REF!,2,FALSE))","v":""}]
[null,null,null,null,null,null,null,null,null,null,null,null,null,null,null,null,null,null,null,null,null,null,null,null,null,null,null,null,null,null,null,null,null,null,null,null,null,null,{"$f":"IF(ISERROR(VLOOKUP(C196,#REF!,2,FALSE)),\"\",VLOOKUP(C196,#REF!,2,FALSE))","v":""}]
[null,null,null,null,null,null,null,null,null,null,null,null,null,null,null,null,null,null,null,null,null,null,null,null,null,null,null,null,null,null,null,null,null,null,null,null,null,null,{"$f":"IF(ISERROR(VLOOKUP(C197,#REF!,2,FALSE)),\"\",VLOOKUP(C197,#REF!,2,FALSE))","v":""}]
[null,null,null,null,null,null,null,null,null,null,null,null,null,null,null,null,null,null,null,null,null,null,null,null,null,null,null,null,null,null,null,null,null,null,null,null,null,null,{"$f":"IF(ISERROR(VLOOKUP(C198,#REF!,2,FALSE)),\"\",VLOOKUP(C198,#REF!,2,FALSE))","v":""}]
[null,null,null,null,null,null,null,null,null,null,null,null,null,null,null,null,null,null,null,null,null,null,null,null,null,null,null,null,null,null,null,null,null,null,null,null,null,null,{"$f":"IF(ISERROR(VLOOKUP(C199,#REF!,2,FALSE)),\"\",VLOOKUP(C199,#REF!,2,FALSE))","v":""}]
[null,null,null,null,null,null,null,null,null,null,null,null,null,null,null,null,null,null,null,null,null,null,null,null,null,null,null,null,null,null,null,null,null,null,null,null,null,null,{"$f":"IF(ISERROR(VLOOKUP(C200,#REF!,2,FALSE)),\"\",VLOOKUP(C200,#REF!,2,FALSE))","v":""}]
[null,null,null,null,null,null,null,null,null,null,null,null,null,null,null,null,null,null,null,null,null,null,null,null,null,null,null,null,null,null,null,null,null,null,null,null,null,null,{"$f":"IF(ISERROR(VLOOKUP(C201,#REF!,2,FALSE)),\"\",VLOOKUP(C201,#REF!,2,FALSE))","v":""}]
[null,null,null,null,null,null,null,null,null,null,null,null,null,null,null,null,null,null,null,null,null,null,null,null,null,null,null,null,null,null,null,null,null,null,null,null,null,null,{"$f":"IF(ISERROR(VLOOKUP(C202,#REF!,2,FALSE)),\"\",VLOOKUP(C202,#REF!,2,FALSE))","v":""}]
[null,null,null,null,null,null,null,null,null,null,null,null,null,null,null,null,null,null,null,null,null,null,null,null,null,null,null,null,null,null,null,null,null,null,null,null,null,null,{"$f":"IF(ISERROR(VLOOKUP(C203,#REF!,2,FALSE)),\"\",VLOOKUP(C203,#REF!,2,FALSE))","v":""}]
[null,null,null,null,null,null,null,null,null,null,null,null,null,null,null,null,null,null,null,null,null,null,null,null,null,null,null,null,null,null,null,null,null,null,null,null,null,null,{"$f":"IF(ISERROR(VLOOKUP(C204,#REF!,2,FALSE)),\"\",VLOOKUP(C204,#REF!,2,FALSE))","v":""}]
[null,null,null,null,null,null,null,null,null,null,null,null,null,null,null,null,null,null,null,null,null,null,null,null,null,null,null,null,null,null,null,null,null,null,null,null,null,null,{"$f":"IF(ISERROR(VLOOKUP(C205,#REF!,2,FALSE)),\"\",VLOOKUP(C205,#REF!,2,FALSE))","v":""}]
[null,null,null,null,null,null,null,null,null,null,null,null,null,null,null,null,null,null,null,null,null,null,null,null,null,null,null,null,null,null,null,null,null,null,null,null,null,null,{"$f":"IF(ISERROR(VLOOKUP(C206,#REF!,2,FALSE)),\"\",VLOOKUP(C206,#REF!,2,FALSE))","v":""}]
[null,null,null,null,null,null,null,null,null,null,null,null,null,null,null,null,null,null,null,null,null,null,null,null,null,null,null,null,null,null,null,null,null,null,null,null,null,null,{"$f":"IF(ISERROR(VLOOKUP(C207,#REF!,2,FALSE)),\"\",VLOOKUP(C207,#REF!,2,FALSE))","v":""}]

{"sheet":"appcopy","index":2,"n_rows":0,"n_cols":0,"rows_kept":0,"cut":false,"hidden":true,"merged":[]}

{"sheet":"Texts","index":3,"n_rows":62,"n_cols":14,"rows_kept":62,"cut":false,"hidden":true,"merged":[]}
["(EN)","(FR)"," (JPN)"]
["Welcome","Bienvenu","ようこそ"]
["This template will aid in the submission of personal data to the Tokyo 2020 accreditation system. It will check for errors in the data that you are about to submit. Once all your data is correct, you will be able to generate an import file to load in the accreditation system.\n","Ce fichier aidera à la transmission des données personnelles au système d'accréditation de Tokyo 2020. Il vérifiera les erreurs dans les données que vous êtes sur le point de communiquer. Une fois que toutes vos données seront correctes, vous serez en mesure de générer un fichier d'importation dans le système d'accréditation.","このテンプレートは、東京2020のアクレディテーションシステムへの個人情報提出をサポートするものです。 \nこのテンプレートでは、データを提出する前にエラーがあるかどうかを確認することができます。 \n 全てのデータが正しい形式である場合のみ、アクレディテーションシステムに反映するためのインポート用ファイルを作成することができます。 \n "]
["Organisation:","Organisation:","組織:"]
["Tokyo 2020 Accreditation Contact:","Contact Accréditation de Tokyo 2020:","東京2020 アクレディテーション問い合わせ先:"]
["Template version: ","Version du fichier:","テンプレートのバージョン:"]
["Select your language:","Choisissez votre langue:","言語を選択して下さい:"]
["Select your date format:","Choisissez votre format de date:","記載する日付の形式を選択して下さい:"]
["Check Errors","Vérifier les erreurs","エラーを確認"]
["Generate Import File...","Générer fichier d'importation...","インポートファイルを作成"]
["FIELD","CHAMP","入力項目"]
["DESCRIPTION","DESCRIPTION","説明"]
["FORMAT","FORMAT","形式"]
["MAX LENGTH","TAILLE MAX","最大文字数"]
["Example","Exemple","例"]
["DD/MM/YYYY","JJ/MM/AAAA","日日/月月/年年年年"]
["MM/DD/YYYY","MM/JJ/AAAA","月月/日日/年年年年"]
["Mandatory field","Champ obligatoire","必須項目"]
["Code not found, or in lowercase","Code non trouvé ou en minuscule","CODEが見つからない、または小文字の状態です。",null,null,null,null,null,null,null,null,null,null,2]
["Organisation is required for this Function","Organisation requise pour cette Fonction","この役割は組織が必須です"]
["Help","Aide","ヘルプ"]
["Discipline(s) required for this Function","Discipline(s) requise pour cette Fonction ","この役割は種別が必須です"]
["Venue(s) required for this Function","Site(s) nécessaire pour cette Fonction","この役割は会場が必須です"]
["Select your category:","Veuillez sélectionner une catégorie ","あなたの所属先の区分を選んでください:"]
["Discipline(s) field must be empty for this Function","Le champ Discipline(s) doit être vide pour cette Fonction ","この役割は種別を入力しないで下さい"]
["Field is required for this Function","Le champ est nécessaire pour cette Fonction","この役割の場合、この項目は必須です。"]
["Field must be empty for this Function","Le champ doit être vide pour cette Fonction","この役割の場合、項目を空欄のままにする必要があります"]
["Venue(s) field must be empty for this Function","Le champ Site doit être vide pour cette Fonction","この役割は会場を入力しないで下さい"]
["Document Type must be JDL, MNC or PAS for Japanese nationality","Pour la nationalité japonaise le type de pièce d'identité entré doit être JDL, MNC ou PAS ","日本国籍者のみがJDL、MNC、PASを使用することが可能です"]
["Document Type must be PAS or JRC for this nationality","Le type de pièce d'identité doit être JRC ou PAS pour cette nationalité","この国籍の場合、PASまたはJRCである必要があります"]
["Date of expiry is mandatory only for passports","La date d'expiration est obligatoire seulement pour les passeports","パスポートの場合、有効期限が必須です"]
["Local family name is mandatory for Japanese nationals ","Le nom de famille local est obligatoire pour les citoyens japonais ","日本国籍者の場合、姓 (日本語)の入力が必須です"]
["Local given name is mandatory for Japanese nationals ","Le prénom local est obligatoire pour les citoyens japonais ","日本国籍者の場合、名 (日本語)の入力が必須です"]
["Date of expiry is mandatory for passports","La date d'expiration est obligatoire pour les passeports","パスポートの場合、有効期限が必須です"]
["Country of issue is mandatory for passports","Le pays de délivrance est obligatoire pour les passeports","この本人確認書類の場合、発行国の入力が必須です"]
["Venue(s) required for this Function","Site(s) nécessaire pour cette Fonction","この役割は会場の入力が必須です"]
["Field contains non-permitted characters","Ce champ contient des caractères invalides","使用不可な文字が使用されています"]
["Field length is invalid","Taille du texte invalide","文字数が有効ではありません"]
["Invalid email format","Format d'e-mail invalide","Eメールの形式が有効ではありません"]
["Invalid MNC format","Format de MNC invalide","MNCの形式が有効ではありません(表面4文字のセキュリティコードを入力)"]
["Start","Début","入力開始"]
["Only integer numbers allowed","Seulement nombres entiers sont permis","番号だけの入力が可能です"]
["Number must be between 100 and 300","Le nombre doit être compris entre 100 et 300","番号は100から300の間である必要があります"]
["Height Unit is missing","Unité de taille manquante","身長の単位の入力がありません"]
["Height is missing","Taille manquante","身長の入力がありません"]
["DD-MM-YYYY","JJ-MM-AAAA","日日-月月-年年年年"]
["MM-DD-YYYY","MM-JJ-AAAA","月月-日日-年年年年"]
["Invalid date format","Format de date invalide","日付の形式が有効ではありません"]
["Invalid date format. Date is wrong or inconsistent with current settings. Check your date format settings in Welcome page","Format de date invalide. La date est incorrecte ou ne correspond pas au format demandé. Vérifiez vos sélections de format de date dans la Page d'Accueil","日付の形式が有効ではありません。現在の設定では日付が間違い・形式が不一致と認識されます。Welcomeとあるページに行き、日付の形式を確認して下さい。"]
["Select your import template file","Sélectionnez votre fichier d'importation","Save as "]
["You need to select an import template to generate an import file","Vous devez sélectionner votre fichier d'importation pour générer un fichier de transfert groupé","Save as "]
["Warning","Attention","警告"]
["Date of Birth in the Future","Date de naissance invalide","生年月日が未来の日付です"]
["Document date of expiry is before date of birth","La date d'expiration du document est antérieure à la date de naissance","本人確認書類の有効期限日が生年月日より前です"]
["Document Expired","La pièce d'identité n'est plus valide","本人確認書類の有効期限が過ぎています"]
[]
[]
["No Errors Found!  Now you are ready to generate your file, and import into OMS. ","Aucune erreur trouvée! Merci de vous connecter à OMS pour télécharger le fichier d'importation. Vous pourrez ensuite générer votre fichier de transfert groupé!","エラーが発見されなかったので、ファイルを作成し、OMSへのアップロードが可能です"]
["Errors found, please check the Application_Page to fix the errors on the cells highlighted in red.","Des erreurs ont été trouvées, merci de résoudre les erreurs des champs surlignés en rouge dans l'Application_Page.","エラーが発見されました。Application_Pageのページに行き、赤くハイライトされている箇所を修正して下さい"]
["File extension missing","Extension de fichier manquant","ファイルの拡張子がありません"]
["YYYY-MM-DD","AAAA-MM-JJ","年年年年-月月-日日"]
["This field is mandatory for Japanese nationals only, please leave it blank","Ce champ est obligatoire seùlement pour les citoyens japonais, veuillez le laisser vide","日本国籍者のみ入力必須です。入力の必要はありません。"]

{"sheet":"Data fields","index":4,"n_rows":42,"n_cols":12,"rows_kept":42,"cut":false,"hidden":true,"merged":[]}
[]
["ACR Import Fields","Upload Template Field (EN)","Upload Template Field (FR)","Upload Template Field (JPN)","Field Description (EN)","Field Description (FR)","Field Description (JPN)","SysLen","Required","Format","Formula","Comments to validate"]
["Registration number","Registration number","Registration number","Registration number",null,null,null,7,false,"TEXT/NUMBER"]
["Organisation","Organisation","Organisation","組織","Enter the Organisation CODE","Entrez le CODE de l’organisation","組織コードを入力",12,true,"CODE"]
["Function","Function","Fonction","役割","Enter the Function CODE","Entrez le code de la fonction","役割コードを入力",12,true,"CODE"]
["Discipline(s)","Discipline(s)","Discipine(s)","種別","Enter the discipline(s) CODE(s). Separate with comma (,) for more than one code","Entrez le(s) CODE(s) de discipine(s) Séparez avec une virgule (,) lorsque vous entrez plusieurs codes","種別コードを入力 (複数可)",150,false,"CODE","!Formula!","mandatory for some categories"]
["Venue(s)","Venue(s)","Lieu(s)","会場","Enter the venue(s) CODE(s). Separate with comma (,) for more than one code","Entrez le(s) CODE(s) de Site(s) Séparez avec une virgule (,) lorsque vous entrez plusieurs codes","会場コードを入力 (複数可)",150,false,"CODE","!Formula!","mandatory for some categories"]
["Family name","Family name","Nom de famille","姓 (ファミリーネーム)","Enter Family Name exactly as it appears on Identification Document","Entrez le nom de famille exactement tel qu'il apparaît sur la pièce d'identité","姓 (ファミリーネーム)を本人確認書類に記載されている通りに入力",25,true,"TEXT"]
["Given name","Given name","Prénom","名 (ファーストネーム)","Enter first Given Name exactly as it appears on Identification Document","Entrez le prénom exactement tel qu'il apparaît sur la pièce d'identité","名 (ファーストネーム)を本人確認書類に記載されている通りに入力",25,true,"TEXT"]
["Middle/other given name(s)","Middle/other given name(s)","Deuxième prénom/ Autre(s) nom(s)","ミドルネーム/その他のファーストネーム","Enter Middle/other given name(s) exactly as it appears on Identification Document","Entrez le Deuxième prénom/ Autre(s) nom(s) exactement tel qu'il apparaît sur la pièce d'identité","ミドルネーム・その他のファーストネームを本人確認書類に記載されている通りに入力",25,false,"TEXT"]
["Preferred family name","Preferred family name","Nom de famille souhaité","通称名 (姓)","Enter the Preferred family name","Entrez le Nom de famille souhaité","通称名 (姓)を入力",25,false,"TEXT"]
["Preferred given name","Preferred given name","Prénom souhaité","通称名 (名)","Enter the Preferred given name","Entrez le Prénom souhaité","通称名 (名)を入力",25,false,"TEXT"]
["IF family name","IF family name","Nom de famille IF","IF登録名 (姓)","Enter IF family name","Entrez le Nom de famille IF","IF登録名 (姓)を入力",25,false,"TEXT",null,"TRUE IF AA or AP"]
["IF given name","IF given name","Prénom IF","IF登録名 (名)","Enter IF given name","Entrez le Prénom IF","IF登録名 (名)を入力",25,false,"TEXT",null,"TRUE IF AA or AP"]
["Family name (Japanese)","Family name (in Japanese)","Nom de famille local","姓 (日本語)","Enter the local Family name (for Japanese nationals only)","Entrez le Nom de famille local (Obligatoire seulement pour les citoyens japonais)","日本語で姓 (ファミリーネーム)を入力 \n(日本国籍者のみ必須)",25,false,"TEXT",null,"Mandatory for Japanese"]
["Given name (Japanese)","Given name (in Japanese)","Prénom local","名 (日本語)","Enter the local given name (for Japanese nationals only)","Entrez le prénom local (Obligatoire seulement pour les citoyens japonais)","日本語で名 (ファーストネーム)を入力\n(日本国籍者のみ必須)",25,false,"TEXT",null,"Mandatory for Japanese"]
["Height","Height","la taille","身長","Enter the Height in centimetres (mandatory for some disciplines)","Entrez la taille","身長を入力 (種別により必須)\n- 単位 (センチメートル「cm」)の入力は不要",3,false,"NUMBER",null,"Mandatory for some Disciplines"]
["Gender","Gender","Sexe","性別","Enter the Gender CODE ('M' for Male, 'F' for Female or 'X' (only if in passport))","Entrez le CODE correspondant ('M' pour Masculin,'F' pour Féminin ou 'X' (seulement si indiqué sur le passeport))","性別コードを入力 (M=男性、F＝女性、またはX (パスポートで表記されている場合のみ))",1,true,"CODE"]
["Nationality","Nationality","Nationalité","国籍","Enter the Country CODE","Entrez le CODE du pays","国コードを入力",3,true,"CODE"]
["Date of birth","Date of birth","Date de naissance","生年月日","Enter the Date of Birth","Entrez la date de naissance","生年月日を入力",10,true,{"$f":"INDEX(Texts!A1:$C$61,Welcome!$N20,Welcome!$N19)","v":"DD/MM/YYYY"},"!Formula!"]
["Document type","Document type","Pièce d’identité : Type","本人確認書類","Enter the Document Type CODE","Entrez le type CODE de pièce d'identité","本人確認書類の種類のコードを入力",3,true,"CODE"]
["Document number","Document number","Pièce d’identité : Numéro","番号","Enter the Document number","Entrez le numéro tel qu'il apparaît sur la pièce d'identité","本人確認書類の番号を入力",20,true,"TEXT/NUMBER"]
["Country of issue","Country of issue","Pièce d’identité : Pays de délivrance","発行国","Enter the \nCountry CODE","Entrez le CODE du pays","本人確認書の発行国のコードを入力",3,false,"CODE",null,"mandatory only for passport"]
["Date of expiry","Date of expiry","Pièce d’identité : Date d’expiration","有効期限","Enter the Document expiry date","Entrez la date d'expiration de la pièce d'identité (obligatoire pour les passeports)","本人確認書類の有効期限を入力",10,false,{"$f":"INDEX(Texts!A1:$C$61,Welcome!$N20,Welcome!$N19)","v":"DD/MM/YYYY"},"!Formula!","mandatory only for passport"]
["Daily wheelchair user","Daily wheelchair user","Demandeur en fauteuil","車いす常用者","Type 'YE' for 'Yes electric wheelchair' , 'YM' for 'Yes manual wheelchair', 'N' for \"No","Entrer 'YE' pour Oui fauteuil electrique, 'YM' pour Oui fauteuil manuel ou 'N' pour Non","車いすの使用について以下のいずれかのコードを入力 \n-「YE」(電子車いす)、「YM」 (手動車いす)、「N」 (車いすの使用なし)",2,true,"CODE"]
["Mobile phone","Mobile phone","Numéro de téléphone (portable)","電話 番号(携帯)","Enter home Phone number","Entrez le Numéro de téléphone (portable)","携帯電話番号を入力",20,false,"TEL NUMBER"]
["Home phone","Home phone","Numéro de téléphone (maison)","電話 番号(固定)","Enter mobile Phone number","Entrez le numéro de téléphone (fixe)","固定電話番号を入力",20,false,"TEL NUMBER"]
["Email address","Email address","Courriel","Eメールアドレス","Enter the Email address of the applicant","Entrez l'adresse e-mail","申請者のEメールアドレスを入力",80,false,"TEXT"]
["Photograph","Photograph","Photographier","写真","Enter the exact file name including the file extension","Si vous importez une photo au moment de la demande, entrez le nom du fichier image, y compris l'extension du fichier","ファイル名 (拡張子を含む)を入力",250,false,"TEXT"]
["Athlete 365 Acceptance","Athlete 365 Acceptance","Athlete 365 Acceptation","Athlete 365を受諾する","Enter 'Y' for Yes or 'N' for No","Entrer 'Y' pour Oui ou 'N' pour Non","Athlete 365の承諾について入力 \n- 承諾する=「Y」、承諾しない「N」を",1,false,"TEXT"]
["Athlete 365 Email Address","Athlete 365 Email Address","Athlete 365 Courriel","Athlete 365 Eメールアドレス","Enter Athlete 365 Email Address","Entrer l'adresse e-mail pour le programme Athlete 365","Athlete 365 Eメールアドレス",80,false,"TEXT"]
["SNS type 1","SNS type 1","Type de Média Social 1","SNSのタイプ 1","Enter The Social Media Type 1 CODE","Entrez le(s) CODE de Type de Média Social","ソーシャルメディア タイプ1のコードを入力",3,false,"CODE"]
["SNS profile 1","SNS profile 1","Profil sur Média Social 1","SNSプロファイル1 ","Enter Your Social Media profile 1","Indiquez le Profil sur Média Social 1","ソーシャルメディア タイプ1のプロフィールを入力",150,false,"TEXT"]
["SNS type 2","SNS type 2","Type de Média Social 2","SNSのタイプ 2","Enter The Social Media Type 2 CODE","Entrez le(s) CODE de Type de Média Social","ソーシャルメディア タイプ2のコードを入力",3,false,"CODE"]
["SNS profile 2","SNS profile 2","Profil sur Média Social 2","SNSプロファイル 2","Enter Your Social Media profile 2","Indiquez le Profil sur Média Social 2","ソーシャルメディア タイプ2のプロフィールを入力",150,false,"TEXT"]
["SNS type 3","SNS type 3","Type de Média Social 3","SNSのタイプ 3","Enter The Social Media Type 3 CODE","Entrez le(s) CODE de Type de Média Social","ソーシャルメディア タイプ3のコードを入力",3,false,"CODE"]
["SNS profile 3","SNS profile 3","Profil sur Média Social 3","SNSプロファイル 3 ","Enter Your Social Media profile 3","Indiquez le Profil sur Média Social 3","ソーシャルメディア タイプ3のプロフィールを入力",150,false,"TEXT"]
["SNS type 4","SNS type 4","Type de Média Social 4","SNSのタイプ 4","Enter The Social Media Type 4 CODE","Entrez le(s) CODE de Type de Média Social","ソーシャルメディア タイプ4のコードを入力",3,false,"CODE"]
["SNS profile 4","SNS profile 4","Profil sur Média Social 4","SNSプロファイル 4","Enter Your Social Media profile 4","Indiquez le Profil sur Média Social 4","ソーシャルメディア タイプ4のプロフィールを入力",150,false,"TEXT"]
["All competing disciplines","All competing disciplines","Toutes disciplines concurrentes ","全競技種別","Enter 'Y' for Yes or 'N' for No","Entrer 'Y' pour Oui ou 'N' pour Non","全競技種別の場合「Y」を入力、そうでない場合は「N」を入力",1,false,"CODE"]
["Organisation reference","Organisation reference","Référence de l’organisation","組織の照会番号","Enter the Organisation reference","Enter la référence de l'Organisation","照会目的で情報を入力",25,false,"TEXT"]
["Category","Category",null,null,null,null,null,5,false,"CODE"]